Workbook

Sheet 5CD (hidden)
A1: Solver cannot find the solution for a Cobb-Douglas functional form.
A3: a | B3: 0.5
A4: b | B4: 0.5
A5: c | B5: 0.5
G6: m growth rate | H6: 0.1
E7: =SUM(E10:E14) -> 1.709707218 | G7: yearly m | H7: 1
D8: discount rate | E8: 0.1 | F8: 0.5 | H8: =SUM(H10:H14) -> -1.457462417e-08
A9: Time | B9: S | C9: x | D9: y | E9: U | F9: dS | G9: DS | H9: constraint
A10: 0 | B10: 0 | C10: 1.439135763 | D10: 0 | E10: =(C10^$B$3*D10^$B$4*B10^$B$5)/((1+dr)^A10) -> 0 | F10: =$F$8*B10 -> 0 | G10: =C10-F10 -> 1.439135763 | H10: =((1+$H$6)^A10)*$H$7/((1+dr)^A10)-C10-D10 -> -0.4391357629
A11: 1 | B11: =B10+G10 -> 1.439135763 | C11: 1.541185483 | D11: 1.36163667 | E11: =(C11^$B$3*D11^$B$4*B11^$B$5)/((1+dr)^A11) -> 1.579851518 | F11: =$F$8*B11 -> 0.7195678814 | G11: =C11-F11 -> 0.8216176016 | H11: =((1+$H$6)^A11)*$H$7/((1+dr)^A11)-C11-D11 -> -1.902822153
A12: 2 | B12: =B11+G11 -> 2.260753365 | C12: 1.746252706e-05 | D12: 1.402832884e-05 | E12: =(C12^$B$3*D12^$B$4*B12^$B$5)/((1+dr)^A12) -> 1.944902065e-05 | F12: =$F$8*B12 -> 1.130376682 | G12: =C12-F12 -> -1.13035922 | H12: =((1+$H$6)^A12)*$H$7/((1+dr)^A12)-C12-D12 -> 0.9999685091
A13: 3 | B13: =B12+G12 -> 1.130394145 | C13: 0 | D13: 1.912627137e-06 | E13: =(C13^$B$3*D13^$B$4*B13^$B$5)/((1+dr)^A13) -> 0 | F13: =$F$8*B13 -> 0.5651970724 | G13: =C13-F13 -> -0.5651970724 | H13: =((1+$H$6)^A13)*$H$7/((1+dr)^A13)-C13-D13 -> 0.9999980874
A14: 4 | B14: =B13+G13 -> 0.5651970724 | C14: 0.1185058426 | D14: 0.5395028528 | E14: =(C14^$B$3*D14^$B$4*B14^$B$5)/((1+dr)^A14) -> 0.1298362505 | F14: =$F$8*B14 -> 0.2825985362 | G14: =C14-F14 -> -0.1640926936 | H14: =((1+$H$6)^A14)*$H$7/((1+dr)^A14)-C14-D14 -> 0.3419913046

Sheet Intro
A1: Rational Addiction
A2: Humberto Barreto
A3: DePauw University
A5: This Excel workbook explains key ideas in the model of rational addiction.
B6: It uses Excel's Solver to find an optimal solution and makes clear how the model works.
A8: Software Requirements:
B9: You need Microsoft Excel, Windows version 2007 or greater to get full functionality from this file.
C10: The file can be opened with Mac Excel, but it uses Visual Basic code that may not be fully supported on a Mac.
B12: You must be sure to Enable Content or the buttons and code in this macro-enabled workbook will not work. -->
C13: Search "enable macros" in Excel's Help for more information on how to do this.
A15: As you read and scroll down a sheet, the workbook will unfold, displaying new sheets, and I will ask you to click buttons and change things.
B16: You are free to take notes on the sheets or change cells as you desire.
B17: You can modify charts or create new ones -- there is nothing special about this workbook, nothing is password protected or otherwise blocked.
B18: You cannot really hurt anything -- if something does break, just close the workbook and re-open it. You can also Save As if you want to be extra careful and have an original copy available.
B19: If you know Visual Basic, go ahead and look at the code. It is freely available for you to inspect and alter as you wish.
B20: If you are reading this on your own, check out the Conversation sheet; otherwise your professor
A22: I welcome all feedback, positive and negative. Drop me an email and let me know what you think or if you have any questions or suggestions.
A23: I really hope this helps.
A24: Enjoy!
A25: Humberto Barreto
A26: hbarreto@depauw.edu

Sheet Conversation (hidden)
A1: Talking Through Some Basic Ideas
A3: Before diving into the deep end, let's take a few minutes to ponder what this is all about.
A4: This will help you understand the model.
A6: --> In the beginning . . .
A7: Becker and Murphy (1988) "A Theory of Rational Addiction" Journal of Political Economy
A8: https://www.jstor.org/stable/1830469
A9: This article is the foundation of models that are optimization-based (that's the "rational" part) of goods whose consumption influences future consumption (i.e., that's "addiction").
A11: --> Wait! Rational addiction sounds really silly -- no one chooses and plans to be an opioid or meth addict.
A12: Right, no argument here. If a person knew for certain that a single puff as a teenager would unleash a cascade of events that immediately destroyed their lives, they would not do it.
A13: The phrase "rational addiction" is catchy and attracts attention , but it's also confusing and can cause some people to stop listening because it seems so obviously wrong.
A14: After all, it sounds like it's saying that people purposely choose harmful obsession. That makes no sense.
A15: Right again.
A16: The words are really getting in the way here.
A17: You have to open your mind and be willing to see rationality and addiction in a different way than usual. Let's begin.
A19: --> This is not narrow -- there are a whole class of goods and services that can be analyzed by rational addiction models.
A20: When you think of addiction, you immediately think of cigarettes, alcohol and drugs. Ingesting these things does something biological to make you want more of it, but what about gambling?
A21: You don't actually swallow, snort or inject yourself with anything when you buy a lottery ticket, play poker for money, or bet on sports, yet we know some people are addicted to gambling.
A22: And speaking of sports, what about super-involved fans that know insane trivia about their team and spend outrageous sums of money to see games?
A23: We can conclude that sports fandom is also a form of addiction and we can study it as part of this category of goods and services that are addictive.
A24: To broaden the idea even further, although we think of addiction as bad, we can be addicted to good things, like exercise, cleaning, and going to church.
A25: We might even say that marathon runners, germaphobes, and religious fundamentalists are essentially addicts.
A26: You can become addicted to video games, the internet, and food.
A27: You can even become addicted to other people -- non-economists call that love. Nearby is sex, to which we can also form an addiction.
A28: There is no doubt that addiction is everywhere and remember that it's OK to be somewhat addicted to some things, but don't overdo it.
A29: If you like work, we might then say you have a good work ethic, but too much of it and you're a workaholic -- that's bad.
A31: --> "How use doth breed a habit in a man!"
A32: In their introduction, Becker and Murphy (1988) included the quotation above from William Shakespeare's The Two Gentlemen of Verona (let's agree that not many Econ articles quote Shakespeare).
A33: The line seems on point, but what exactly does doth mean? Well, actually, it means does, but even then, what exactly is Shakespeare saying here?
A34: Lucky for us, there are translations of his plays to modern English. "How use doth breed a habit in a man!" translates to:
A35: "Repetition can make a man accustomed to anything!" | G35: https://www.sparknotes.com/nofear/shakespeare/twogentlemen/page_174/
A36: So use actually means doing something repeatedly and Shakespeare is saying that this is how habits are formed.
A37: In other words, consumption influences future consumption -- that's the hallmark of addictive things.
A38: Addicts do not appear out of thin air as fully-formed maniacs. They became intensely involved over time. Addiction is repeated use, along with the idea that you can't stop.
A39: But before you are addicted, you have to have repeated experience and knowledge. It's a cumulative process.
A40: I once took a bunch of European professors to a baseball game -- wow, what a disaster! I had to explain the most ridiculous details to them: "He didn't run because it's a foul ball."
A41: On the other hand, thank goodness my first cricket game was T20 -- imagine five days of that! Even the score was baffling. Click to see --> | N41: https://www.google.com/search?q=cricket+t20
A42: So, some goods require learning and experience and we get more and more utility (satisfaction) the more we consume them.
A43: You can think of it as some goods having a more durable effect on us than others. We build up a stock of familiarity that makes consumption more enjoyable.
A44: And, yes, the addiction can have a biological foundation, like caffeine and coffee, but it's much bigger than that: anything where we get more out of it next time we do it is a candidate for addiction.
A46: --> "Acuerdate de la rutina."
A47: "Remember the routine" -- that's what my mom used to tell me. She spoke Spanish because, like me, she was born in Cuba.
A48: She believed we are creatures of habit. Familiarity reduces stress and increases confidence.
A49: We do the same things the same ways, over and over (just like Shakespeare said) and we get comfortable in our rut. We are addicted.
A50: We eat roughly the same foods day after day, follow pretty repetitive schedules, and have nightly procedures for bed (brush teeth, etc.). We get grouchy when our routines are disrupted.
A51: Addiction is an extreme type of habit and habits are formed by repetition. Sounds perfectly reasonable, right?
A52: But -- and this is huge for understanding the word rational in rational addiction -- my mom also believed that you can have a meta-moment where you can literally choose your routine.
A53: Like you, my mom never heard of rational addiction or Becker and Murphy, but she understood the core of the idea:
A54: She believed that we can step back and look at the whole timeline, past, present, and future, and plan the habits you will have.
A55: That's what rational addiction is all about!
A56: There's an intentionality there that we can control. Like our friends -- we can randomly bump into people and they become our friends, but in another sense, we choose our friends.
A57: My mom also anticipated another critical aspect of rational addiction: unexpected shocks.
A58: She knew that a big life event might shake us out of the routine. These shocks give us a chance to reassess and reconsider what we are doing.
A60: --> Football concussions make some fans quit, but others hang on.
A61: I know a lot about football. I mean, really, a lot. In fact, it's embarrassing. I grew up in Miami when the Dolphins were undefeated in 1972. They went 17 - 0.
A62: Many people know they won the Super Bowl by a score of 14 - 7 and can name many of the stars on the team, but I bet only a few know this:
A63: Their coach, Don Shula, was ballistically upset at their kicker, Garo Yepremian, because up 14 - 0 and the game almost over, he tried a 42-year field goal.
A64: Shula had a big smile on his face because he was about to win the game 17 - 0 and end the season 17 - 0 and this was some kind of cosmic numerological convergence.
A65: Alas, the gods weren't having it and we got one of the wackiest plays in football history:
A66: https://www.youtube.com/watch?v=d-pxMm_UdY4
A67: But the last few years have been tough on football fans. I don't mean protesting players and charges of domestic violence. The game itself is facing an existential challenge at its core.
A68: We now know that concussions cause CTE and football is a game in which giant, super-fast humans give themselves brain damage. Who wants to watch that?
A69: In the rational addiction model, that's a shock to the consumer's stock of invested capital.
A70: Some addicts, I mean fans, will quit watching (and tell other fans they are terrible for continuing to watch -- former smokers act the same way), but others will hang on.
A71: The hangers on (like me, so far) probably would not be fans except for the investment they have made: the built-up knowledge and experience is key.
A72: When I watch a game, I know all kinds of things about what's going on: I have historical comparisons I can make; I know records and rare events; and I know poor and great plays.
A73: Can you imagine selling this game from scratch, without any built-up fan base, but when everyone knows the game causes brain trauma? I mean, blown knees are one thing, but dementia?
A74: It seems pretty obvious that football is alive right now because of addicts and the existential threat is that its addicts might quit.
A75: Figuring out how a shock can cause some people to quit while others hang on is pretty interesting, in general, and absolutely essential for football.
A77: --> Past ↔ Present ↔ Future consumption being connected makes for a brutal optimization problem.
A78: You have come a long way already.
A79: You are aware that rational addiction isn't as goofy as it first sounds.
A80: You know that addictive goods are everywhere and that it relies on consumption today affecting consumption tomorrow.
A81: Sure, we are creatures of habit, but we also control, to some extent, habit formation. There is an intentionality there that is not obvious when you look at a fully-formed addict.
A82: And, finally, you know that quitting is another part of this issue -- some people quit and others don't. Why?
A83: Perhaps you think it would be a simple matter to extend the basic utility maximization model to include addiction. Just make consumption depend on past consumption.
A84: You couldn't be more wrong.
A85: The problem becomes much, much harder when past choices influence future ones.
A86: If we weren't economists, then sure, the explanation would be easy. The consumer would accidently stumble into some kind of addiction vortex, then consume more and more until addicted. QED.
A87: But, wait, how come some people do the repeated use thing until it becomes utterly destructive, spinning wildly out of control, while others are more benignly addicted?
A88: And what about quitting? How come some can escape the vortex?
A89: Falling into an addiction by mistake might work for some things, but it does not make sense for addictive goods where the consumer knows today's decision will influence future consumption.
A90: Remember my mom, she knew we could step back and see the big picture. That's what she meant when she said, "Acuerdate de la rutina."
A91: The rational addiction model has a tough task: it needs to explain why someone would, on purpose, choose to consume an addictive good and become addicted.
A92: We can't exactly pinpoint when "everyone" knew cigarettes were bad for you, but accidently becoming addicted to cigarettes is a hard sell today.
A93: In economics, the rational consumer has full information -- they know the good is addictive. They can see the future.
A94: The rational, optimizing consumer knows that the good is addictive, yet they choose a path that leads to addiction.
A95: Why?
A96: Because they solve a lifetime maximization of utility problem and pick a path of consumption that yields addiction as the optimal solution.
A97: That lifetime optimization problem is difficult to set up, solve, and understand.
A98: It also has a stability aspect where a shock can knock you off the path and then you might be attracted back to it or leave it altogether.
A100: --> Numerical methods to the rescue!
A101: Instead of the usual approach involving intense math (solving involves a Hamiltonian, differential equations, and phase diagrams), we will use Excel's Solver.
A102: We will implement the problem in Excel, which will require replacing abstract notation with numbers. So, instead of U=f(x), for example, we might use the formula =18x - x^2.
A103: Excel will also force us to make plain how consumption in one period affects next period's consumption and what it means to maximize lifetime utility subject to a budget constraint.
A104: Once we have the problem on the spreadsheet, we can use Solver, a numerical optimization add-in to give us the answer. We can avoid the intense math and focus on the model's results.
A105: Make no mistake, the problem is still really difficult and you have to pay close attention, but you now have a realistic shot at understanding an advanced economic theory.
A107: Thanks for your investment so far. Let's hope you get addicted!

Sheet 1x (hidden)
A1: This is an example of a quadratic utility function:
A4: We want to choose x to maximize utility. This can be done with calculus by taking the derivative of U with respect to x and setting it equal to zero, but Excel's Solver can also do it.
A6: To use Solver, we have to "implement the problem in Excel," which means we have to enter the function in a way that Excel can deal with it:
B7: x | C7: U | E7: x is blue to represent that it is a choice variable, determined by the consumer
B8: 1 | C8: =18*B8-3*B8^2 -> 15
A9: Change x in cell B8 to 2 and you will see that cell C8, which shows the value of utility, becomes 24 since 18*2 - 3*(2^2) = 24.
A11: Now that we have the problem on the sheet, we can use Solver to find the value of x that maximizes U.
A13: In the Data tab, click Solver to bring up the Solver Parameters dialog box.
B14: If you do not see Solver, you have to install it. Bring up the Add-Ins Manager (use Excel's Help if needed) and make sure Solver is checked.
A15: In the Solver Parameters dialog box, enter cell C8 as the Objective and B8 in the Changing Variable Cells as shown to the right and click Solve (near the bottom).
A17: Excel displays a Solver Results dialog box announcing success. Click OK to keep Solver's solution.
A19: Cell B8 now displays 3, the optimal value of x, and U* is 27 in cell C8. This is the answer.
A21: If you do this problem analytically, using calculus and algebra, you will get the same answer.
A23: What is important here is that Solver gets us the answer. It is a numerical optimization tool that gives us an alternative to math.
A24: There are some additional complications and issues with this technique, the most important of which is that sometimes it does not work.
A25: We will stay with our extremely simple quadratic utility function to ensure that Solver is giving us reliable answers.
A27: To display the solution on a graph, we plot U as a function of x -- it's pretty obvious that x* = 3 is the right answer:
L28: x | M28: U
A29: Now that we know how to use | L29: 0 | M29: =18*L29-3*L29^2 -> 0
A30: Solver, we can move on to a | L30: 0.1 | M30: =18*L30-3*L30^2 -> 1.77
A31: more complicated problem. | L31: 0.2 | M31: 3.48
L32: 0.3 | M32: 5.13
L33: 0.4 | M33: 6.72
L34: 0.5 | M34: 8.25
L35: 0.6 | M35: 9.72
L36: 0.7 | M36: 11.13
L37: 0.8 | M37: 12.48
L38: 0.9 | M38: 13.77
L39: 1 | M39: 15
L40: 1.1 | M40: 16.17
L41: 1.2 | M41: 17.28
L42: 1.3 | M42: 18.33
L43: 1.4 | M43: 19.32
L44: 1.5 | M44: 20.25
L45: 1.6 | M45: 21.12
L46: 1.7 | M46: 21.93
L47: 1.8 | M47: 22.68
L48: 1.9 | M48: 23.37
L49: 2 | M49: 24
L50: 2.1 | M50: 24.57
L51: 2.2 | M51: 25.08
L52: 2.3 | M52: 25.53
L53: 2.4 | M53: 25.92
L54: 2.5 | M54: 26.25
L55: 2.6 | M55: 26.52
L56: 2.7 | M56: 26.73
L57: 2.8 | M57: 26.88
L58: 2.9 | M58: 26.97
L59: 3 | M59: 27
L60: 3.1 | M60: 26.97
L61: 3.2 | M61: 26.88
L62: 3.3 | M62: 26.73
L63: 3.4 | M63: 26.52
L64: 3.5 | M64: 26.25
L65: 3.6 | M65: 25.92
L66: 3.7 | M66: 25.53
L67: 3.8 | M67: 25.08
L68: 3.9 | M68: 24.57
L69: 4 | M69: 24
L70: 4.1 | M70: 23.37
L71: 4.2 | M71: 22.68
L72: 4.3 | M72: 21.93
L73: 4.4 | M73: 21.12
L74: 4.5 | M74: 20.25
L75: 4.6 | M75: 19.32
L76: 4.7 | M76: 18.33
L77: 4.8 | M77: 17.28
L78: 4.9 | M78: 16.17
L79: 5 | M79: 15

Sheet 2x (hidden)
A1: Now we will extend the model: we use the same utility function, but we have TWO time periods:
A4: So, we have to choose x for now (period 0, the present) and tomorrow (period 1, the future).
A6: We can use the spreadsheet to make the implementation a little more flexible by using cells with parameter values, like this:
E7: a0 | F7: 18 | H7: a0 and a1 are green because they are exogenous variables (they cannot be changed by the consumer) in this model.
E8: a1 | F8: 3 | H8: Below (D23:D25), x is blue because it is endogenous (a choice variable for the consumer).
A9: This way, we can change these coefficients easily if needed. | H9: Remember: green for exogenous and blue for endogenous.
A11: Introducing time means we have to account for the fact that people prefer present to future consumption.
A12: So, satisfaction today for future consumption has to be marked down.
A13: The easiest way to do this is to adjust downward future utility by a factor called the discount rate.
A14: Say utility from consuming x is 100 today, then utility now from consuming x one year from now might be 100/1.1, or 90.9. That's a 10% discount rate.
A15: Different people can have different discount rates. If you are super impatient, then your discount rate is high, say 50%.
A16: Then consuming x one year from now would give you utility right now of 100/1.5 = 67 or so.
A17: Notice that we are computing utility now, at the present, of consumption in the future and that's why it is not worth as much--we have to wait for it.
A19: So now the optimization problem looks like this:
D21: discount rate (dr) | E21: 0.1
C23: Time | D23: x | E23: U
C24: 0 | D24: 1 | E24: =(a0*D24-_a1*D24^2)/((1+dr)^C24) -> 15 | F24: <-- Click on cells E24 and E25 to see their formulas. For E24, dividing by (1+dr) doesn't do anything because it's raised to the zero power, making the denominator 1.
C25: 1 | D25: 1 | E25: =(a0*D25-_a1*D25^2)/((1+dr)^C25) -> 13.63636364 | F25: But for E25, present discounted utility is smaller because we are dividing by (1+dr).
D26: sum U | E26: =E24+E25 -> 28.63636364 | F26: Change E21 to a bigger number, say 0.5, to see that present discounted utility gets smaller. Put it back to 0.1 before continuing.
A28: Change cells D24 and D25 to 2 to see that the sum of present discounted utility rises so 2,2 provides more utility than 1,1.
A29: As usual, we want the values of x in time 0 and 1 that maximize present discounted utility.
A31: We could solve this problem with math, but let's use Solver again.
A32: All you have to do is call Solver (from the Data tab) and click Solve.
A33: Notice that it has been set up for you.
A35: A graph of the solution looks like this: | I35: Economists like the 2D graph (it's a contour plot) better because it is easier to see the solution.
I48: Those bands of color should remind you of indifference curves.
A49: Next, we extend the model again, as we climb toward the model of rational addiction.
A52: Data for graphs above:
B53: 0 | C53: 0.1 | D53: 0.2 | E53: 0.3 | F53: 0.4 | G53: 0.5 | H53: 0.6 | I53: 0.7 | J53: 0.8 | K53: 0.9 | L53: 1 | M53: 1.1 | N53: 1.2 | O53: 1.3 | P53: 1.4 | Q53: 1.5 | R53: 1.6 | S53: 1.7 | T53: 1.8 | U53: 1.9 | V53: 2 | W53: 2.1 | X53: 2.2 | Y53: 2.3 | Z53: 2.4 | AA53: 2.5 | AB53: 2.6 | AC53: 2.7 | AD53: 2.8 | AE53: 2.9 | AF53: 3 | AG53: 3.1 | AH53: 3.2 | AI53: 3.3 | AJ53: 3.4 | AK53: 3.5 | AL53: 3.6 | AM53: 3.7 | AN53: 3.8 | AO53: 3.9 | AP53: 4 | AQ53: 4.1 | AR53: 4.2 | AS53: 4.3 | AT53: 4.4 | AU53: 4.5 | AV53: 4.6 | AW53: 4.7 | AX53: 4.8 | AY53: 4.9 | AZ53: 5 | BA53: 5.1 | BB53: 5.2 | BC53: 5.3 | BD53: 5.4 | BE53: 5.5 | BF53: 5.6 | BG53: 5.7 | BH53: 5.8 | BI53: 5.9 | BJ53: 6
A54: 0 | B54: =a0*$A54-_a1*$A54^2+(a0*B$53-_a1*B$53^2)/(1+dr) -> 0 | C54: 1.609090909 | D54: 3.163636364 | E54: 4.663636364 | F54: 6.109090909 | G54: 7.5 | H54: 8.836363636 | I54: 10.11818182 | J54: 11.34545455 | K54: 12.51818182 | L54: =a0*$A54-_a1*$A54^2+(a0*L$53-_a1*L$53^2)/(1+dr) -> 13.63636364 | M54: 14.7 | N54: 15.70909091 | O54: 16.66363636 | P54: 17.56363636 | Q54: 18.40909091 | R54: 19.2 | S54: 19.93636364 | T54: 20.61818182 | U54: 21.24545455 | V54: =a0*$A54-_a1*$A54^2+(a0*V$53-_a1*V$53^2)/(1+dr) -> 21.81818182 | W54: 22.33636364 | X54: 22.8 | Y54: 23.20909091 | Z54: 23.56363636 | AA54: 23.86363636 | AB54: 24.10909091 | AC54: 24.3 | AD54: 24.43636364 | AE54: 24.51818182 | AF54: =a0*$A54-_a1*$A54^2+(a0*AF$53-_a1*AF$53^2)/(1+dr) -> 24.54545455 | AG54: 24.51818182 | AH54: 24.43636364 | AI54: 24.3 | AJ54: 24.10909091 | AK54: 23.86363636 | AL54: 23.56363636 | AM54: 23.20909091 | AN54: 22.8 | AO54: 22.33636364 | AP54: =a0*$A54-_a1*$A54^2+(a0*AP$53-_a1*AP$53^2)/(1+dr) -> 21.81818182 | AQ54: 21.24545455 | AR54: 20.61818182 | AS54: 19.93636364 | AT54: 19.2 | AU54: 18.40909091 | AV54: 17.56363636 | AW54: 16.66363636 | AX54: 15.70909091 | AY54: 14.7 | AZ54: =a0*$A54-_a1*$A54^2+(a0*AZ$53-_a1*AZ$53^2)/(1+dr) -> 13.63636364 | BA54: 12.51818182 | BB54: 11.34545455 | BC54: 10.11818182 | BD54: 8.836363636 | BE54: 7.5 | BF54: 6.109090909 | BG54: 4.663636364 | BH54: 3.163636364 | BI54: 1.609090909 | BJ54: 0
A55: 0.1 | B55: 1.77 | C55: 3.379090909 | D55: 4.933636364 | E55: 6.433636364 | F55: 7.879090909 | G55: 9.27 | H55: 10.60636364 | I55: 11.88818182 | J55: 13.11545455 | K55: 14.28818182 | L55: 15.40636364 | M55: 16.47 | N55: 17.47909091 | O55: 18.43363636 | P55: 19.33363636 | Q55: 20.17909091 | R55: 20.97 | S55: 21.70636364 | T55: 22.38818182 | U55: 23.01545455 | V55: 23.58818182 | W55: 24.10636364 | X55: 24.57 | Y55: 24.97909091 | Z55: 25.33363636 | AA55: 25.63363636 | AB55: 25.87909091 | AC55: 26.07 | AD55: 26.20636364 | AE55: 26.28818182 | AF55: 26.31545455 | AG55: 26.28818182 | AH55: 26.20636364 | AI55: 26.07 | AJ55: 25.87909091 | AK55: 25.63363636 | AL55: 25.33363636 | AM55: 24.97909091 | AN55: 24.57 | AO55: 24.10636364 | AP55: 23.58818182 | AQ55: 23.01545455 | AR55: 22.38818182 | AS55: 21.70636364 | AT55: 20.97 | AU55: 20.17909091 | AV55: 19.33363636 | AW55: 18.43363636 | AX55: 17.47909091 | AY55: 16.47 | AZ55: 15.40636364 | BA55: 14.28818182 | BB55: 13.11545455 | BC55: 11.88818182 | BD55: 10.60636364 | BE55: 9.27 | BF55: 7.879090909 | BG55: 6.433636364 | BH55: 4.933636364 | BI55: 3.379090909 | BJ55: 1.77
A56: 0.2 | B56: 3.48 | C56: 5.089090909 | D56: 6.643636364 | E56: 8.143636364 | F56: 9.589090909 | G56: 10.98 | H56: 12.31636364 | I56: 13.59818182 | J56: 14.82545455 | K56: 15.99818182 | L56: 17.11636364 | M56: 18.18 | N56: 19.18909091 | O56: 20.14363636 | P56: 21.04363636 | Q56: 21.88909091 | R56: 22.68 | S56: 23.41636364 | T56: 24.09818182 | U56: 24.72545455 | V56: 25.29818182 | W56: 25.81636364 | X56: 26.28 | Y56: 26.68909091 | Z56: 27.04363636 | AA56: 27.34363636 | AB56: 27.58909091 | AC56: 27.78 | AD56: 27.91636364 | AE56: 27.99818182 | AF56: 28.02545455 | AG56: 27.99818182 | AH56: 27.91636364 | AI56: 27.78 | AJ56: 27.58909091 | AK56: 27.34363636 | AL56: 27.04363636 | AM56: 26.68909091 | AN56: 26.28 | AO56: 25.81636364 | AP56: 25.29818182 | AQ56: 24.72545455 | AR56: 24.09818182 | AS56: 23.41636364 | AT56: 22.68 | AU56: 21.88909091 | AV56: 21.04363636 | AW56: 20.14363636 | AX56: 19.18909091 | AY56: 18.18 | AZ56: 17.11636364 | BA56: 15.99818182 | BB56: 14.82545455 | BC56: 13.59818182 | BD56: 12.31636364 | BE56: 10.98 | BF56: 9.589090909 | BG56: 8.143636364 | BH56: 6.643636364 | BI56: 5.089090909 | BJ56: 3.48
A57: 0.3 | B57: 5.13 | C57: 6.739090909 | D57: 8.293636364 | E57: 9.793636364 | F57: 11.23909091 | G57: 12.63 | H57: 13.96636364 | I57: 15.24818182 | J57: 16.47545455 | K57: 17.64818182 | L57: 18.76636364 | M57: 19.83 | N57: 20.83909091 | O57: 21.79363636 | P57: 22.69363636 | Q57: 23.53909091 | R57: 24.33 | S57: 25.06636364 | T57: 25.74818182 | U57: 26.37545455 | V57: 26.94818182 | W57: 27.46636364 | X57: 27.93 | Y57: 28.33909091 | Z57: 28.69363636 | AA57: 28.99363636 | AB57: 29.23909091 | AC57: 29.43 | AD57: 29.56636364 | AE57: 29.64818182 | AF57: 29.67545455 | AG57: 29.64818182 | AH57: 29.56636364 | AI57: 29.43 | AJ57: 29.23909091 | AK57: 28.99363636 | AL57: 28.69363636 | AM57: 28.33909091 | AN57: 27.93 | AO57: 27.46636364 | AP57: 26.94818182 | AQ57: 26.37545455 | AR57: 25.74818182 | AS57: 25.06636364 | AT57: 24.33 | AU57: 23.53909091 | AV57: 22.69363636 | AW57: 21.79363636 | AX57: 20.83909091 | AY57: 19.83 | AZ57: 18.76636364 | BA57: 17.64818182 | BB57: 16.47545455 | BC57: 15.24818182 | BD57: 13.96636364 | BE57: 12.63 | BF57: 11.23909091 | BG57: 9.793636364 | BH57: 8.293636364 | BI57: 6.739090909 | BJ57: 5.13
A58: 0.4 | B58: 6.72 | C58: 8.329090909 | D58: 9.883636364 | E58: 11.38363636 | F58: 12.82909091 | G58: 14.22 | H58: 15.55636364 | I58: 16.83818182 | J58: 18.06545455 | K58: 19.23818182 | L58: 20.35636364 | M58: 21.42 | N58: 22.42909091 | O58: 23.38363636 | P58: 24.28363636 | Q58: 25.12909091 | R58: 25.92 | S58: 26.65636364 | T58: 27.33818182 | U58: 27.96545455 | V58: 28.53818182 | W58: 29.05636364 | X58: 29.52 | Y58: 29.92909091 | Z58: 30.28363636 | AA58: 30.58363636 | AB58: 30.82909091 | AC58: 31.02 | AD58: 31.15636364 | AE58: 31.23818182 | AF58: 31.26545455 | AG58: 31.23818182 | AH58: 31.15636364 | AI58: 31.02 | AJ58: 30.82909091 | AK58: 30.58363636 | AL58: 30.28363636 | AM58: 29.92909091 | AN58: 29.52 | AO58: 29.05636364 | AP58: 28.53818182 | AQ58: 27.96545455 | AR58: 27.33818182 | AS58: 26.65636364 | AT58: 25.92 | AU58: 25.12909091 | AV58: 24.28363636 | AW58: 23.38363636 | AX58: 22.42909091 | AY58: 21.42 | AZ58: 20.35636364 | BA58: 19.23818182 | BB58: 18.06545455 | BC58: 16.83818182 | BD58: 15.55636364 | BE58: 14.22 | BF58: 12.82909091 | BG58: 11.38363636 | BH58: 9.883636364 | BI58: 8.329090909 | BJ58: 6.72
A59: 0.5 | B59: 8.25 | C59: 9.859090909 | D59: 11.41363636 | E59: 12.91363636 | F59: 14.35909091 | G59: 15.75 | H59: 17.08636364 | I59: 18.36818182 | J59: 19.59545455 | K59: 20.76818182 | L59: 21.88636364 | M59: 22.95 | N59: 23.95909091 | O59: 24.91363636 | P59: 25.81363636 | Q59: 26.65909091 | R59: 27.45 | S59: 28.18636364 | T59: 28.86818182 | U59: 29.49545455 | V59: 30.06818182 | W59: 30.58636364 | X59: 31.05 | Y59: 31.45909091 | Z59: 31.81363636 | AA59: 32.11363636 | AB59: 32.35909091 | AC59: 32.55 | AD59: 32.68636364 | AE59: 32.76818182 | AF59: 32.79545455 | AG59: 32.76818182 | AH59: 32.68636364 | AI59: 32.55 | AJ59: 32.35909091 | AK59: 32.11363636 | AL59: 31.81363636 | AM59: 31.45909091 | AN59: 31.05 | AO59: 30.58636364 | AP59: 30.06818182 | AQ59: 29.49545455 | AR59: 28.86818182 | AS59: 28.18636364 | AT59: 27.45 | AU59: 26.65909091 | AV59: 25.81363636 | AW59: 24.91363636 | AX59: 23.95909091 | AY59: 22.95 | AZ59: 21.88636364 | BA59: 20.76818182 | BB59: 19.59545455 | BC59: 18.36818182 | BD59: 17.08636364 | BE59: 15.75 | BF59: 14.35909091 | BG59: 12.91363636 | BH59: 11.41363636 | BI59: 9.859090909 | BJ59: 8.25
A60: 0.6 | B60: 9.72 | C60: 11.32909091 | D60: 12.88363636 | E60: 14.38363636 | F60: 15.82909091 | G60: 17.22 | H60: 18.55636364 | I60: 19.83818182 | J60: 21.06545455 | K60: 22.23818182 | L60: 23.35636364 | M60: 24.42 | N60: 25.42909091 | O60: 26.38363636 | P60: 27.28363636 | Q60: 28.12909091 | R60: 28.92 | S60: 29.65636364 | T60: 30.33818182 | U60: 30.96545455 | V60: 31.53818182 | W60: 32.05636364 | X60: 32.52 | Y60: 32.92909091 | Z60: 33.28363636 | AA60: 33.58363636 | AB60: 33.82909091 | AC60: 34.02 | AD60: 34.15636364 | AE60: 34.23818182 | AF60: 34.26545455 | AG60: 34.23818182 | AH60: 34.15636364 | AI60: 34.02 | AJ60: 33.82909091 | AK60: 33.58363636 | AL60: 33.28363636 | AM60: 32.92909091 | AN60: 32.52 | AO60: 32.05636364 | AP60: 31.53818182 | AQ60: 30.96545455 | AR60: 30.33818182 | AS60: 29.65636364 | AT60: 28.92 | AU60: 28.12909091 | AV60: 27.28363636 | AW60: 26.38363636 | AX60: 25.42909091 | AY60: 24.42 | AZ60: 23.35636364 | BA60: 22.23818182 | BB60: 21.06545455 | BC60: 19.83818182 | BD60: 18.55636364 | BE60: 17.22 | BF60: 15.82909091 | BG60: 14.38363636 | BH60: 12.88363636 | BI60: 11.32909091 | BJ60: 9.72
A61: 0.7 | B61: 11.13 | C61: 12.73909091 | D61: 14.29363636 | E61: 15.79363636 | F61: 17.23909091 | G61: 18.63 | H61: 19.96636364 | I61: 21.24818182 | J61: 22.47545455 | K61: 23.64818182 | L61: 24.76636364 | M61: 25.83 | N61: 26.83909091 | O61: 27.79363636 | P61: 28.69363636 | Q61: 29.53909091 | R61: 30.33 | S61: 31.06636364 | T61: 31.74818182 | U61: 32.37545455 | V61: 32.94818182 | W61: 33.46636364 | X61: 33.93 | Y61: 34.33909091 | Z61: 34.69363636 | AA61: 34.99363636 | AB61: 35.23909091 | AC61: 35.43 | AD61: 35.56636364 | AE61: 35.64818182 | AF61: 35.67545455 | AG61: 35.64818182 | AH61: 35.56636364 | AI61: 35.43 | AJ61: 35.23909091 | AK61: 34.99363636 | AL61: 34.69363636 | AM61: 34.33909091 | AN61: 33.93 | AO61: 33.46636364 | AP61: 32.94818182 | AQ61: 32.37545455 | AR61: 31.74818182 | AS61: 31.06636364 | AT61: 30.33 | AU61: 29.53909091 | AV61: 28.69363636 | AW61: 27.79363636 | AX61: 26.83909091 | AY61: 25.83 | AZ61: 24.76636364 | BA61: 23.64818182 | BB61: 22.47545455 | BC61: 21.24818182 | BD61: 19.96636364 | BE61: 18.63 | BF61: 17.23909091 | BG61: 15.79363636 | BH61: 14.29363636 | BI61: 12.73909091 | BJ61: 11.13
A62: 0.8 | B62: 12.48 | C62: 14.08909091 | D62: 15.64363636 | E62: 17.14363636 | F62: 18.58909091 | G62: 19.98 | H62: 21.31636364 | I62: 22.59818182 | J62: 23.82545455 | K62: 24.99818182 | L62: 26.11636364 | M62: 27.18 | N62: 28.18909091 | O62: 29.14363636 | P62: 30.04363636 | Q62: 30.88909091 | R62: 31.68 | S62: 32.41636364 | T62: 33.09818182 | U62: 33.72545455 | V62: 34.29818182 | W62: 34.81636364 | X62: 35.28 | Y62: 35.68909091 | Z62: 36.04363636 | AA62: 36.34363636 | AB62: 36.58909091 | AC62: 36.78 | AD62: 36.91636364 | AE62: 36.99818182 | AF62: 37.02545455 | AG62: 36.99818182 | AH62: 36.91636364 | AI62: 36.78 | AJ62: 36.58909091 | AK62: 36.34363636 | AL62: 36.04363636 | AM62: 35.68909091 | AN62: 35.28 | AO62: 34.81636364 | AP62: 34.29818182 | AQ62: 33.72545455 | AR62: 33.09818182 | AS62: 32.41636364 | AT62: 31.68 | AU62: 30.88909091 | AV62: 30.04363636 | AW62: 29.14363636 | AX62: 28.18909091 | AY62: 27.18 | AZ62: 26.11636364 | BA62: 24.99818182 | BB62: 23.82545455 | BC62: 22.59818182 | BD62: 21.31636364 | BE62: 19.98 | BF62: 18.58909091 | BG62: 17.14363636 | BH62: 15.64363636 | BI62: 14.08909091 | BJ62: 12.48
A63: 0.9 | B63: 13.77 | C63: 15.37909091 | D63: 16.93363636 | E63: 18.43363636 | F63: 19.87909091 | G63: 21.27 | H63: 22.60636364 | I63: 23.88818182 | J63: 25.11545455 | K63: 26.28818182 | L63: 27.40636364 | M63: 28.47 | N63: 29.47909091 | O63: 30.43363636 | P63: 31.33363636 | Q63: 32.17909091 | R63: 32.97 | S63: 33.70636364 | T63: 34.38818182 | U63: 35.01545455 | V63: 35.58818182 | W63: 36.10636364 | X63: 36.57 | Y63: 36.97909091 | Z63: 37.33363636 | AA63: 37.63363636 | AB63: 37.87909091 | AC63: 38.07 | AD63: 38.20636364 | AE63: 38.28818182 | AF63: 38.31545455 | AG63: 38.28818182 | AH63: 38.20636364 | AI63: 38.07 | AJ63: 37.87909091 | AK63: 37.63363636 | AL63: 37.33363636 | AM63: 36.97909091 | AN63: 36.57 | AO63: 36.10636364 | AP63: 35.58818182 | AQ63: 35.01545455 | AR63: 34.38818182 | AS63: 33.70636364 | AT63: 32.97 | AU63: 32.17909091 | AV63: 31.33363636 | AW63: 30.43363636 | AX63: 29.47909091 | AY63: 28.47 | AZ63: 27.40636364 | BA63: 26.28818182 | BB63: 25.11545455 | BC63: 23.88818182 | BD63: 22.60636364 | BE63: 21.27 | BF63: 19.87909091 | BG63: 18.43363636 | BH63: 16.93363636 | BI63: 15.37909091 | BJ63: 13.77
A64: 1 | B64: =a0*$A64-_a1*$A64^2+(a0*B$53-_a1*B$53^2)/(1+dr) -> 15 | C64: 16.60909091 | D64: 18.16363636 | E64: 19.66363636 | F64: 21.10909091 | G64: 22.5 | H64: 23.83636364 | I64: 25.11818182 | J64: 26.34545455 | K64: 27.51818182 | L64: =a0*$A64-_a1*$A64^2+(a0*L$53-_a1*L$53^2)/(1+dr) -> 28.63636364 | M64: 29.7 | N64: 30.70909091 | O64: 31.66363636 | P64: 32.56363636 | Q64: 33.40909091 | R64: 34.2 | S64: 34.93636364 | T64: 35.61818182 | U64: 36.24545455 | V64: =a0*$A64-_a1*$A64^2+(a0*V$53-_a1*V$53^2)/(1+dr) -> 36.81818182 | W64: 37.33636364 | X64: 37.8 | Y64: 38.20909091 | Z64: 38.56363636 | AA64: 38.86363636 | AB64: 39.10909091 | AC64: 39.3 | AD64: 39.43636364 | AE64: 39.51818182 | AF64: =a0*$A64-_a1*$A64^2+(a0*AF$53-_a1*AF$53^2)/(1+dr) -> 39.54545455 | AG64: 39.51818182 | AH64: 39.43636364 | AI64: 39.3 | AJ64: 39.10909091 | AK64: 38.86363636 | AL64: 38.56363636 | AM64: 38.20909091 | AN64: 37.8 | AO64: 37.33636364 | AP64: =a0*$A64-_a1*$A64^2+(a0*AP$53-_a1*AP$53^2)/(1+dr) -> 36.81818182 | AQ64: 36.24545455 | AR64: 35.61818182 | AS64: 34.93636364 | AT64: 34.2 | AU64: 33.40909091 | AV64: 32.56363636 | AW64: 31.66363636 | AX64: 30.70909091 | AY64: 29.7 | AZ64: =a0*$A64-_a1*$A64^2+(a0*AZ$53-_a1*AZ$53^2)/(1+dr) -> 28.63636364 | BA64: 27.51818182 | BB64: 26.34545455 | BC64: 25.11818182 | BD64: 23.83636364 | BE64: 22.5 | BF64: 21.10909091 | BG64: 19.66363636 | BH64: 18.16363636 | BI64: 16.60909091 | BJ64: 15
A65: 1.1 | B65: 16.17 | C65: 17.77909091 | D65: 19.33363636 | E65: 20.83363636 | F65: 22.27909091 | G65: 23.67 | H65: 25.00636364 | I65: 26.28818182 | J65: 27.51545455 | K65: 28.68818182 | L65: 29.80636364 | M65: 30.87 | N65: 31.87909091 | O65: 32.83363636 | P65: 33.73363636 | Q65: 34.57909091 | R65: 35.37 | S65: 36.10636364 | T65: 36.78818182 | U65: 37.41545455 | V65: 37.98818182 | W65: 38.50636364 | X65: 38.97 | Y65: 39.37909091 | Z65: 39.73363636 | AA65: 40.03363636 | AB65: 40.27909091 | AC65: 40.47 | AD65: 40.60636364 | AE65: 40.68818182 | AF65: 40.71545455 | AG65: 40.68818182 | AH65: 40.60636364 | AI65: 40.47 | AJ65: 40.27909091 | AK65: 40.03363636 | AL65: 39.73363636 | AM65: 39.37909091 | AN65: 38.97 | AO65: 38.50636364 | AP65: 37.98818182 | AQ65: 37.41545455 | AR65: 36.78818182 | AS65: 36.10636364 | AT65: 35.37 | AU65: 34.57909091 | AV65: 33.73363636 | AW65: 32.83363636 | AX65: 31.87909091 | AY65: 30.87 | AZ65: 29.80636364 | BA65: 28.68818182 | BB65: 27.51545455 | BC65: 26.28818182 | BD65: 25.00636364 | BE65: 23.67 | BF65: 22.27909091 | BG65: 20.83363636 | BH65: 19.33363636 | BI65: 17.77909091 | BJ65: 16.17
A66: 1.2 | B66: 17.28 | C66: 18.88909091 | D66: 20.44363636 | E66: 21.94363636 | F66: 23.38909091 | G66: 24.78 | H66: 26.11636364 | I66: 27.39818182 | J66: 28.62545455 | K66: 29.79818182 | L66: 30.91636364 | M66: 31.98 | N66: 32.98909091 | O66: 33.94363636 | P66: 34.84363636 | Q66: 35.68909091 | R66: 36.48 | S66: 37.21636364 | T66: 37.89818182 | U66: 38.52545455 | V66: 39.09818182 | W66: 39.61636364 | X66: 40.08 | Y66: 40.48909091 | Z66: 40.84363636 | AA66: 41.14363636 | AB66: 41.38909091 | AC66: 41.58 | AD66: 41.71636364 | AE66: 41.79818182 | AF66: 41.82545455 | AG66: 41.79818182 | AH66: 41.71636364 | AI66: 41.58 | AJ66: 41.38909091 | AK66: 41.14363636 | AL66: 40.84363636 | AM66: 40.48909091 | AN66: 40.08 | AO66: 39.61636364 | AP66: 39.09818182 | AQ66: 38.52545455 | AR66: 37.89818182 | AS66: 37.21636364 | AT66: 36.48 | AU66: 35.68909091 | AV66: 34.84363636 | AW66: 33.94363636 | AX66: 32.98909091 | AY66: 31.98 | AZ66: 30.91636364 | BA66: 29.79818182 | BB66: 28.62545455 | BC66: 27.39818182 | BD66: 26.11636364 | BE66: 24.78 | BF66: 23.38909091 | BG66: 21.94363636 | BH66: 20.44363636 | BI66: 18.88909091 | BJ66: 17.28
A67: 1.3 | B67: 18.33 | C67: 19.93909091 | D67: 21.49363636 | E67: 22.99363636 | F67: 24.43909091 | G67: 25.83 | H67: 27.16636364 | I67: 28.44818182 | J67: 29.67545455 | K67: 30.84818182 | L67: 31.96636364 | M67: 33.03 | N67: 34.03909091 | O67: 34.99363636 | P67: 35.89363636 | Q67: 36.73909091 | R67: 37.53 | S67: 38.26636364 | T67: 38.94818182 | U67: 39.57545455 | V67: 40.14818182 | W67: 40.66636364 | X67: 41.13 | Y67: 41.53909091 | Z67: 41.89363636 | AA67: 42.19363636 | AB67: 42.43909091 | AC67: 42.63 | AD67: 42.76636364 | AE67: 42.84818182 | AF67: 42.87545455 | AG67: 42.84818182 | AH67: 42.76636364 | AI67: 42.63 | AJ67: 42.43909091 | AK67: 42.19363636 | AL67: 41.89363636 | AM67: 41.53909091 | AN67: 41.13 | AO67: 40.66636364 | AP67: 40.14818182 | AQ67: 39.57545455 | AR67: 38.94818182 | AS67: 38.26636364 | AT67: 37.53 | AU67: 36.73909091 | AV67: 35.89363636 | AW67: 34.99363636 | AX67: 34.03909091 | AY67: 33.03 | AZ67: 31.96636364 | BA67: 30.84818182 | BB67: 29.67545455 | BC67: 28.44818182 | BD67: 27.16636364 | BE67: 25.83 | BF67: 24.43909091 | BG67: 22.99363636 | BH67: 21.49363636 | BI67: 19.93909091 | BJ67: 18.33
A68: 1.4 | B68: 19.32 | C68: 20.92909091 | D68: 22.48363636 | E68: 23.98363636 | F68: 25.42909091 | G68: 26.82 | H68: 28.15636364 | I68: 29.43818182 | J68: 30.66545455 | K68: 31.83818182 | L68: 32.95636364 | M68: 34.02 | N68: 35.02909091 | O68: 35.98363636 | P68: 36.88363636 | Q68: 37.72909091 | R68: 38.52 | S68: 39.25636364 | T68: 39.93818182 | U68: 40.56545455 | V68: 41.13818182 | W68: 41.65636364 | X68: 42.12 | Y68: 42.52909091 | Z68: 42.88363636 | AA68: 43.18363636 | AB68: 43.42909091 | AC68: 43.62 | AD68: 43.75636364 | AE68: 43.83818182 | AF68: 43.86545455 | AG68: 43.83818182 | AH68: 43.75636364 | AI68: 43.62 | AJ68: 43.42909091 | AK68: 43.18363636 | AL68: 42.88363636 | AM68: 42.52909091 | AN68: 42.12 | AO68: 41.65636364 | AP68: 41.13818182 | AQ68: 40.56545455 | AR68: 39.93818182 | AS68: 39.25636364 | AT68: 38.52 | AU68: 37.72909091 | AV68: 36.88363636 | AW68: 35.98363636 | AX68: 35.02909091 | AY68: 34.02 | AZ68: 32.95636364 | BA68: 31.83818182 | BB68: 30.66545455 | BC68: 29.43818182 | BD68: 28.15636364 | BE68: 26.82 | BF68: 25.42909091 | BG68: 23.98363636 | BH68: 22.48363636 | BI68: 20.92909091 | BJ68: 19.32
A69: 1.5 | B69: 20.25 | C69: 21.85909091 | D69: 23.41363636 | E69: 24.91363636 | F69: 26.35909091 | G69: 27.75 | H69: 29.08636364 | I69: 30.36818182 | J69: 31.59545455 | K69: 32.76818182 | L69: 33.88636364 | M69: 34.95 | N69: 35.95909091 | O69: 36.91363636 | P69: 37.81363636 | Q69: 38.65909091 | R69: 39.45 | S69: 40.18636364 | T69: 40.86818182 | U69: 41.49545455 | V69: 42.06818182 | W69: 42.58636364 | X69: 43.05 | Y69: 43.45909091 | Z69: 43.81363636 | AA69: 44.11363636 | AB69: 44.35909091 | AC69: 44.55 | AD69: 44.68636364 | AE69: 44.76818182 | AF69: 44.79545455 | AG69: 44.76818182 | AH69: 44.68636364 | AI69: 44.55 | AJ69: 44.35909091 | AK69: 44.11363636 | AL69: 43.81363636 | AM69: 43.45909091 | AN69: 43.05 | AO69: 42.58636364 | AP69: 42.06818182 | AQ69: 41.49545455 | AR69: 40.86818182 | AS69: 40.18636364 | AT69: 39.45 | AU69: 38.65909091 | AV69: 37.81363636 | AW69: 36.91363636 | AX69: 35.95909091 | AY69: 34.95 | AZ69: 33.88636364 | BA69: 32.76818182 | BB69: 31.59545455 | BC69: 30.36818182 | BD69: 29.08636364 | BE69: 27.75 | BF69: 26.35909091 | BG69: 24.91363636 | BH69: 23.41363636 | BI69: 21.85909091 | BJ69: 20.25
A70: 1.6 | B70: 21.12 | C70: 22.72909091 | D70: 24.28363636 | E70: 25.78363636 | F70: 27.22909091 | G70: 28.62 | H70: 29.95636364 | I70: 31.23818182 | J70: 32.46545455 | K70: 33.63818182 | L70: 34.75636364 | M70: 35.82 | N70: 36.82909091 | O70: 37.78363636 | P70: 38.68363636 | Q70: 39.52909091 | R70: 40.32 | S70: 41.05636364 | T70: 41.73818182 | U70: 42.36545455 | V70: 42.93818182 | W70: 43.45636364 | X70: 43.92 | Y70: 44.32909091 | Z70: 44.68363636 | AA70: 44.98363636 | AB70: 45.22909091 | AC70: 45.42 | AD70: 45.55636364 | AE70: 45.63818182 | AF70: 45.66545455 | AG70: 45.63818182 | AH70: 45.55636364 | AI70: 45.42 | AJ70: 45.22909091 | AK70: 44.98363636 | AL70: 44.68363636 | AM70: 44.32909091 | AN70: 43.92 | AO70: 43.45636364 | AP70: 42.93818182 | AQ70: 42.36545455 | AR70: 41.73818182 | AS70: 41.05636364 | AT70: 40.32 | AU70: 39.52909091 | AV70: 38.68363636 | AW70: 37.78363636 | AX70: 36.82909091 | AY70: 35.82 | AZ70: 34.75636364 | BA70: 33.63818182 | BB70: 32.46545455 | BC70: 31.23818182 | BD70: 29.95636364 | BE70: 28.62 | BF70: 27.22909091 | BG70: 25.78363636 | BH70: 24.28363636 | BI70: 22.72909091 | BJ70: 21.12
A71: 1.7 | B71: 21.93 | C71: 23.53909091 | D71: 25.09363636 | E71: 26.59363636 | F71: 28.03909091 | G71: 29.43 | H71: 30.76636364 | I71: 32.04818182 | J71: 33.27545455 | K71: 34.44818182 | L71: 35.56636364 | M71: 36.63 | N71: 37.63909091 | O71: 38.59363636 | P71: 39.49363636 | Q71: 40.33909091 | R71: 41.13 | S71: 41.86636364 | T71: 42.54818182 | U71: 43.17545455 | V71: 43.74818182 | W71: 44.26636364 | X71: 44.73 | Y71: 45.13909091 | Z71: 45.49363636 | AA71: 45.79363636 | AB71: 46.03909091 | AC71: 46.23 | AD71: 46.36636364 | AE71: 46.44818182 | AF71: 46.47545455 | AG71: 46.44818182 | AH71: 46.36636364 | AI71: 46.23 | AJ71: 46.03909091 | AK71: 45.79363636 | AL71: 45.49363636 | AM71: 45.13909091 | AN71: 44.73 | AO71: 44.26636364 | AP71: 43.74818182 | AQ71: 43.17545455 | AR71: 42.54818182 | AS71: 41.86636364 | AT71: 41.13 | AU71: 40.33909091 | AV71: 39.49363636 | AW71: 38.59363636 | AX71: 37.63909091 | AY71: 36.63 | AZ71: 35.56636364 | BA71: 34.44818182 | BB71: 33.27545455 | BC71: 32.04818182 | BD71: 30.76636364 | BE71: 29.43 | BF71: 28.03909091 | BG71: 26.59363636 | BH71: 25.09363636 | BI71: 23.53909091 | BJ71: 21.93
A72: 1.8 | B72: 22.68 | C72: 24.28909091 | D72: 25.84363636 | E72: 27.34363636 | F72: 28.78909091 | G72: 30.18 | H72: 31.51636364 | I72: 32.79818182 | J72: 34.02545455 | K72: 35.19818182 | L72: 36.31636364 | M72: 37.38 | N72: 38.38909091 | O72: 39.34363636 | P72: 40.24363636 | Q72: 41.08909091 | R72: 41.88 | S72: 42.61636364 | T72: 43.29818182 | U72: 43.92545455 | V72: 44.49818182 | W72: 45.01636364 | X72: 45.48 | Y72: 45.88909091 | Z72: 46.24363636 | AA72: 46.54363636 | AB72: 46.78909091 | AC72: 46.98 | AD72: 47.11636364 | AE72: 47.19818182 | AF72: 47.22545455 | AG72: 47.19818182 | AH72: 47.11636364 | AI72: 46.98 | AJ72: 46.78909091 | AK72: 46.54363636 | AL72: 46.24363636 | AM72: 45.88909091 | AN72: 45.48 | AO72: 45.01636364 | AP72: 44.49818182 | AQ72: 43.92545455 | AR72: 43.29818182 | AS72: 42.61636364 | AT72: 41.88 | AU72: 41.08909091 | AV72: 40.24363636 | AW72: 39.34363636 | AX72: 38.38909091 | AY72: 37.38 | AZ72: 36.31636364 | BA72: 35.19818182 | BB72: 34.02545455 | BC72: 32.79818182 | BD72: 31.51636364 | BE72: 30.18 | BF72: 28.78909091 | BG72: 27.34363636 | BH72: 25.84363636 | BI72: 24.28909091 | BJ72: 22.68
A73: 1.9 | B73: 23.37 | C73: 24.97909091 | D73: 26.53363636 | E73: 28.03363636 | F73: 29.47909091 | G73: 30.87 | H73: 32.20636364 | I73: 33.48818182 | J73: 34.71545455 | K73: 35.88818182 | L73: 37.00636364 | M73: 38.07 | N73: 39.07909091 | O73: 40.03363636 | P73: 40.93363636 | Q73: 41.77909091 | R73: 42.57 | S73: 43.30636364 | T73: 43.98818182 | U73: 44.61545455 | V73: 45.18818182 | W73: 45.70636364 | X73: 46.17 | Y73: 46.57909091 | Z73: 46.93363636 | AA73: 47.23363636 | AB73: 47.47909091 | AC73: 47.67 | AD73: 47.80636364 | AE73: 47.88818182 | AF73: 47.91545455 | AG73: 47.88818182 | AH73: 47.80636364 | AI73: 47.67 | AJ73: 47.47909091 | AK73: 47.23363636 | AL73: 46.93363636 | AM73: 46.57909091 | AN73: 46.17 | AO73: 45.70636364 | AP73: 45.18818182 | AQ73: 44.61545455 | AR73: 43.98818182 | AS73: 43.30636364 | AT73: 42.57 | AU73: 41.77909091 | AV73: 40.93363636 | AW73: 40.03363636 | AX73: 39.07909091 | AY73: 38.07 | AZ73: 37.00636364 | BA73: 35.88818182 | BB73: 34.71545455 | BC73: 33.48818182 | BD73: 32.20636364 | BE73: 30.87 | BF73: 29.47909091 | BG73: 28.03363636 | BH73: 26.53363636 | BI73: 24.97909091 | BJ73: 23.37
A74: 2 | B74: =a0*$A74-_a1*$A74^2+(a0*B$53-_a1*B$53^2)/(1+dr) -> 24 | C74: 25.60909091 | D74: 27.16363636 | E74: 28.66363636 | F74: 30.10909091 | G74: 31.5 | H74: 32.83636364 | I74: 34.11818182 | J74: 35.34545455 | K74: 36.51818182 | L74: =a0*$A74-_a1*$A74^2+(a0*L$53-_a1*L$53^2)/(1+dr) -> 37.63636364 | M74: 38.7 | N74: 39.70909091 | O74: 40.66363636 | P74: 41.56363636 | Q74: 42.40909091 | R74: 43.2 | S74: 43.93636364 | T74: 44.61818182 | U74: 45.24545455 | V74: =a0*$A74-_a1*$A74^2+(a0*V$53-_a1*V$53^2)/(1+dr) -> 45.81818182 | W74: 46.33636364 | X74: 46.8 | Y74: 47.20909091 | Z74: 47.56363636 | AA74: 47.86363636 | AB74: 48.10909091 | AC74: 48.3 | AD74: 48.43636364 | AE74: 48.51818182 | AF74: =a0*$A74-_a1*$A74^2+(a0*AF$53-_a1*AF$53^2)/(1+dr) -> 48.54545455 | AG74: 48.51818182 | AH74: 48.43636364 | AI74: 48.3 | AJ74: 48.10909091 | AK74: 47.86363636 | AL74: 47.56363636 | AM74: 47.20909091 | AN74: 46.8 | AO74: 46.33636364 | AP74: =a0*$A74-_a1*$A74^2+(a0*AP$53-_a1*AP$53^2)/(1+dr) -> 45.81818182 | AQ74: 45.24545455 | AR74: 44.61818182 | AS74: 43.93636364 | AT74: 43.2 | AU74: 42.40909091 | AV74: 41.56363636 | AW74: 40.66363636 | AX74: 39.70909091 | AY74: 38.7 | AZ74: =a0*$A74-_a1*$A74^2+(a0*AZ$53-_a1*AZ$53^2)/(1+dr) -> 37.63636364 | BA74: 36.51818182 | BB74: 35.34545455 | BC74: 34.11818182 | BD74: 32.83636364 | BE74: 31.5 | BF74: 30.10909091 | BG74: 28.66363636 | BH74: 27.16363636 | BI74: 25.60909091 | BJ74: 24
A75: 2.1 | B75: 24.57 | C75: 26.17909091 | D75: 27.73363636 | E75: 29.23363636 | F75: 30.67909091 | G75: 32.07 | H75: 33.40636364 | I75: 34.68818182 | J75: 35.91545455 | K75: 37.08818182 | L75: 38.20636364 | M75: 39.27 | N75: 40.27909091 | O75: 41.23363636 | P75: 42.13363636 | Q75: 42.97909091 | R75: 43.77 | S75: 44.50636364 | T75: 45.18818182 | U75: 45.81545455 | V75: 46.38818182 | W75: 46.90636364 | X75: 47.37 | Y75: 47.77909091 | Z75: 48.13363636 | AA75: 48.43363636 | AB75: 48.67909091 | AC75: 48.87 | AD75: 49.00636364 | AE75: 49.08818182 | AF75: 49.11545455 | AG75: 49.08818182 | AH75: 49.00636364 | AI75: 48.87 | AJ75: 48.67909091 | AK75: 48.43363636 | AL75: 48.13363636 | AM75: 47.77909091 | AN75: 47.37 | AO75: 46.90636364 | AP75: 46.38818182 | AQ75: 45.81545455 | AR75: 45.18818182 | AS75: 44.50636364 | AT75: 43.77 | AU75: 42.97909091 | AV75: 42.13363636 | AW75: 41.23363636 | AX75: 40.27909091 | AY75: 39.27 | AZ75: 38.20636364 | BA75: 37.08818182 | BB75: 35.91545455 | BC75: 34.68818182 | BD75: 33.40636364 | BE75: 32.07 | BF75: 30.67909091 | BG75: 29.23363636 | BH75: 27.73363636 | BI75: 26.17909091 | BJ75: 24.57
A76: 2.2 | B76: 25.08 | C76: 26.68909091 | D76: 28.24363636 | E76: 29.74363636 | F76: 31.18909091 | G76: 32.58 | H76: 33.91636364 | I76: 35.19818182 | J76: 36.42545455 | K76: 37.59818182 | L76: 38.71636364 | M76: 39.78 | N76: 40.78909091 | O76: 41.74363636 | P76: 42.64363636 | Q76: 43.48909091 | R76: 44.28 | S76: 45.01636364 | T76: 45.69818182 | U76: 46.32545455 | V76: 46.89818182 | W76: 47.41636364 | X76: 47.88 | Y76: 48.28909091 | Z76: 48.64363636 | AA76: 48.94363636 | AB76: 49.18909091 | AC76: 49.38 | AD76: 49.51636364 | AE76: 49.59818182 | AF76: 49.62545455 | AG76: 49.59818182 | AH76: 49.51636364 | AI76: 49.38 | AJ76: 49.18909091 | AK76: 48.94363636 | AL76: 48.64363636 | AM76: 48.28909091 | AN76: 47.88 | AO76: 47.41636364 | AP76: 46.89818182 | AQ76: 46.32545455 | AR76: 45.69818182 | AS76: 45.01636364 | AT76: 44.28 | AU76: 43.48909091 | AV76: 42.64363636 | AW76: 41.74363636 | AX76: 40.78909091 | AY76: 39.78 | AZ76: 38.71636364 | BA76: 37.59818182 | BB76: 36.42545455 | BC76: 35.19818182 | BD76: 33.91636364 | BE76: 32.58 | BF76: 31.18909091 | BG76: 29.74363636 | BH76: 28.24363636 | BI76: 26.68909091 | BJ76: 25.08
A77: 2.3 | B77: 25.53 | C77: 27.13909091 | D77: 28.69363636 | E77: 30.19363636 | F77: 31.63909091 | G77: 33.03 | H77: 34.36636364 | I77: 35.64818182 | J77: 36.87545455 | K77: 38.04818182 | L77: 39.16636364 | M77: 40.23 | N77: 41.23909091 | O77: 42.19363636 | P77: 43.09363636 | Q77: 43.93909091 | R77: 44.73 | S77: 45.46636364 | T77: 46.14818182 | U77: 46.77545455 | V77: 47.34818182 | W77: 47.86636364 | X77: 48.33 | Y77: 48.73909091 | Z77: 49.09363636 | AA77: 49.39363636 | AB77: 49.63909091 | AC77: 49.83 | AD77: 49.96636364 | AE77: 50.04818182 | AF77: 50.07545455 | AG77: 50.04818182 | AH77: 49.96636364 | AI77: 49.83 | AJ77: 49.63909091 | AK77: 49.39363636 | AL77: 49.09363636 | AM77: 48.73909091 | AN77: 48.33 | AO77: 47.86636364 | AP77: 47.34818182 | AQ77: 46.77545455 | AR77: 46.14818182 | AS77: 45.46636364 | AT77: 44.73 | AU77: 43.93909091 | AV77: 43.09363636 | AW77: 42.19363636 | AX77: 41.23909091 | AY77: 40.23 | AZ77: 39.16636364 | BA77: 38.04818182 | BB77: 36.87545455 | BC77: 35.64818182 | BD77: 34.36636364 | BE77: 33.03 | BF77: 31.63909091 | BG77: 30.19363636 | BH77: 28.69363636 | BI77: 27.13909091 | BJ77: 25.53
A78: 2.4 | B78: 25.92 | C78: 27.52909091 | D78: 29.08363636 | E78: 30.58363636 | F78: 32.02909091 | G78: 33.42 | H78: 34.75636364 | I78: 36.03818182 | J78: 37.26545455 | K78: 38.43818182 | L78: 39.55636364 | M78: 40.62 | N78: 41.62909091 | O78: 42.58363636 | P78: 43.48363636 | Q78: 44.32909091 | R78: 45.12 | S78: 45.85636364 | T78: 46.53818182 | U78: 47.16545455 | V78: 47.73818182 | W78: 48.25636364 | X78: 48.72 | Y78: 49.12909091 | Z78: 49.48363636 | AA78: 49.78363636 | AB78: 50.02909091 | AC78: 50.22 | AD78: 50.35636364 | AE78: 50.43818182 | AF78: 50.46545455 | AG78: 50.43818182 | AH78: 50.35636364 | AI78: 50.22 | AJ78: 50.02909091 | AK78: 49.78363636 | AL78: 49.48363636 | AM78: 49.12909091 | AN78: 48.72 | AO78: 48.25636364 | AP78: 47.73818182 | AQ78: 47.16545455 | AR78: 46.53818182 | AS78: 45.85636364 | AT78: 45.12 | AU78: 44.32909091 | AV78: 43.48363636 | AW78: 42.58363636 | AX78: 41.62909091 | AY78: 40.62 | AZ78: 39.55636364 | BA78: 38.43818182 | BB78: 37.26545455 | BC78: 36.03818182 | BD78: 34.75636364 | BE78: 33.42 | BF78: 32.02909091 | BG78: 30.58363636 | BH78: 29.08363636 | BI78: 27.52909091 | BJ78: 25.92
A79: 2.5 | B79: 26.25 | C79: 27.85909091 | D79: 29.41363636 | E79: 30.91363636 | F79: 32.35909091 | G79: 33.75 | H79: 35.08636364 | I79: 36.36818182 | J79: 37.59545455 | K79: 38.76818182 | L79: 39.88636364 | M79: 40.95 | N79: 41.95909091 | O79: 42.91363636 | P79: 43.81363636 | Q79: 44.65909091 | R79: 45.45 | S79: 46.18636364 | T79: 46.86818182 | U79: 47.49545455 | V79: 48.06818182 | W79: 48.58636364 | X79: 49.05 | Y79: 49.45909091 | Z79: 49.81363636 | AA79: 50.11363636 | AB79: 50.35909091 | AC79: 50.55 | AD79: 50.68636364 | AE79: 50.76818182 | AF79: 50.79545455 | AG79: 50.76818182 | AH79: 50.68636364 | AI79: 50.55 | AJ79: 50.35909091 | AK79: 50.11363636 | AL79: 49.81363636 | AM79: 49.45909091 | AN79: 49.05 | AO79: 48.58636364 | AP79: 48.06818182 | AQ79: 47.49545455 | AR79: 46.86818182 | AS79: 46.18636364 | AT79: 45.45 | AU79: 44.65909091 | AV79: 43.81363636 | AW79: 42.91363636 | AX79: 41.95909091 | AY79: 40.95 | AZ79: 39.88636364 | BA79: 38.76818182 | BB79: 37.59545455 | BC79: 36.36818182 | BD79: 35.08636364 | BE79: 33.75 | BF79: 32.35909091 | BG79: 30.91363636 | BH79: 29.41363636 | BI79: 27.85909091 | BJ79: 26.25
A80: 2.6 | B80: 26.52 | C80: 28.12909091 | D80: 29.68363636 | E80: 31.18363636 | F80: 32.62909091 | G80: 34.02 | H80: 35.35636364 | I80: 36.63818182 | J80: 37.86545455 | K80: 39.03818182 | L80: 40.15636364 | M80: 41.22 | N80: 42.22909091 | O80: 43.18363636 | P80: 44.08363636 | Q80: 44.92909091 | R80: 45.72 | S80: 46.45636364 | T80: 47.13818182 | U80: 47.76545455 | V80: 48.33818182 | W80: 48.85636364 | X80: 49.32 | Y80: 49.72909091 | Z80: 50.08363636 | AA80: 50.38363636 | AB80: 50.62909091 | AC80: 50.82 | AD80: 50.95636364 | AE80: 51.03818182 | AF80: 51.06545455 | AG80: 51.03818182 | AH80: 50.95636364 | AI80: 50.82 | AJ80: 50.62909091 | AK80: 50.38363636 | AL80: 50.08363636 | AM80: 49.72909091 | AN80: 49.32 | AO80: 48.85636364 | AP80: 48.33818182 | AQ80: 47.76545455 | AR80: 47.13818182 | AS80: 46.45636364 | AT80: 45.72 | AU80: 44.92909091 | AV80: 44.08363636 | AW80: 43.18363636 | AX80: 42.22909091 | AY80: 41.22 | AZ80: 40.15636364 | BA80: 39.03818182 | BB80: 37.86545455 | BC80: 36.63818182 | BD80: 35.35636364 | BE80: 34.02 | BF80: 32.62909091 | BG80: 31.18363636 | BH80: 29.68363636 | BI80: 28.12909091 | BJ80: 26.52
A81: 2.7 | B81: 26.73 | C81: 28.33909091 | D81: 29.89363636 | E81: 31.39363636 | F81: 32.83909091 | G81: 34.23 | H81: 35.56636364 | I81: 36.84818182 | J81: 38.07545455 | K81: 39.24818182 | L81: 40.36636364 | M81: 41.43 | N81: 42.43909091 | O81: 43.39363636 | P81: 44.29363636 | Q81: 45.13909091 | R81: 45.93 | S81: 46.66636364 | T81: 47.34818182 | U81: 47.97545455 | V81: 48.54818182 | W81: 49.06636364 | X81: 49.53 | Y81: 49.93909091 | Z81: 50.29363636 | AA81: 50.59363636 | AB81: 50.83909091 | AC81: 51.03 | AD81: 51.16636364 | AE81: 51.24818182 | AF81: 51.27545455 | AG81: 51.24818182 | AH81: 51.16636364 | AI81: 51.03 | AJ81: 50.83909091 | AK81: 50.59363636 | AL81: 50.29363636 | AM81: 49.93909091 | AN81: 49.53 | AO81: 49.06636364 | AP81: 48.54818182 | AQ81: 47.97545455 | AR81: 47.34818182 | AS81: 46.66636364 | AT81: 45.93 | AU81: 45.13909091 | AV81: 44.29363636 | AW81: 43.39363636 | AX81: 42.43909091 | AY81: 41.43 | AZ81: 40.36636364 | BA81: 39.24818182 | BB81: 38.07545455 | BC81: 36.84818182 | BD81: 35.56636364 | BE81: 34.23 | BF81: 32.83909091 | BG81: 31.39363636 | BH81: 29.89363636 | BI81: 28.33909091 | BJ81: 26.73
A82: 2.8 | B82: 26.88 | C82: 28.48909091 | D82: 30.04363636 | E82: 31.54363636 | F82: 32.98909091 | G82: 34.38 | H82: 35.71636364 | I82: 36.99818182 | J82: 38.22545455 | K82: 39.39818182 | L82: 40.51636364 | M82: 41.58 | N82: 42.58909091 | O82: 43.54363636 | P82: 44.44363636 | Q82: 45.28909091 | R82: 46.08 | S82: 46.81636364 | T82: 47.49818182 | U82: 48.12545455 | V82: 48.69818182 | W82: 49.21636364 | X82: 49.68 | Y82: 50.08909091 | Z82: 50.44363636 | AA82: 50.74363636 | AB82: 50.98909091 | AC82: 51.18 | AD82: 51.31636364 | AE82: 51.39818182 | AF82: 51.42545455 | AG82: 51.39818182 | AH82: 51.31636364 | AI82: 51.18 | AJ82: 50.98909091 | AK82: 50.74363636 | AL82: 50.44363636 | AM82: 50.08909091 | AN82: 49.68 | AO82: 49.21636364 | AP82: 48.69818182 | AQ82: 48.12545455 | AR82: 47.49818182 | AS82: 46.81636364 | AT82: 46.08 | AU82: 45.28909091 | AV82: 44.44363636 | AW82: 43.54363636 | AX82: 42.58909091 | AY82: 41.58 | AZ82: 40.51636364 | BA82: 39.39818182 | BB82: 38.22545455 | BC82: 36.99818182 | BD82: 35.71636364 | BE82: 34.38 | BF82: 32.98909091 | BG82: 31.54363636 | BH82: 30.04363636 | BI82: 28.48909091 | BJ82: 26.88
A83: 2.9 | B83: 26.97 | C83: 28.57909091 | D83: 30.13363636 | E83: 31.63363636 | F83: 33.07909091 | G83: 34.47 | H83: 35.80636364 | I83: 37.08818182 | J83: 38.31545455 | K83: 39.48818182 | L83: 40.60636364 | M83: 41.67 | N83: 42.67909091 | O83: 43.63363636 | P83: 44.53363636 | Q83: 45.37909091 | R83: 46.17 | S83: 46.90636364 | T83: 47.58818182 | U83: 48.21545455 | V83: 48.78818182 | W83: 49.30636364 | X83: 49.77 | Y83: 50.17909091 | Z83: 50.53363636 | AA83: 50.83363636 | AB83: 51.07909091 | AC83: 51.27 | AD83: 51.40636364 | AE83: 51.48818182 | AF83: 51.51545455 | AG83: 51.48818182 | AH83: 51.40636364 | AI83: 51.27 | AJ83: 51.07909091 | AK83: 50.83363636 | AL83: 50.53363636 | AM83: 50.17909091 | AN83: 49.77 | AO83: 49.30636364 | AP83: 48.78818182 | AQ83: 48.21545455 | AR83: 47.58818182 | AS83: 46.90636364 | AT83: 46.17 | AU83: 45.37909091 | AV83: 44.53363636 | AW83: 43.63363636 | AX83: 42.67909091 | AY83: 41.67 | AZ83: 40.60636364 | BA83: 39.48818182 | BB83: 38.31545455 | BC83: 37.08818182 | BD83: 35.80636364 | BE83: 34.47 | BF83: 33.07909091 | BG83: 31.63363636 | BH83: 30.13363636 | BI83: 28.57909091 | BJ83: 26.97
A84: 3 | B84: =a0*$A84-_a1*$A84^2+(a0*B$53-_a1*B$53^2)/(1+dr) -> 27 | C84: 28.60909091 | D84: 30.16363636 | E84: 31.66363636 | F84: 33.10909091 | G84: 34.5 | H84: 35.83636364 | I84: 37.11818182 | J84: 38.34545455 | K84: 39.51818182 | L84: =a0*$A84-_a1*$A84^2+(a0*L$53-_a1*L$53^2)/(1+dr) -> 40.63636364 | M84: 41.7 | N84: 42.70909091 | O84: 43.66363636 | P84: 44.56363636 | Q84: 45.40909091 | R84: 46.2 | S84: 46.93636364 | T84: 47.61818182 | U84: 48.24545455 | V84: =a0*$A84-_a1*$A84^2+(a0*V$53-_a1*V$53^2)/(1+dr) -> 48.81818182 | W84: 49.33636364 | X84: 49.8 | Y84: 50.20909091 | Z84: 50.56363636 | AA84: 50.86363636 | AB84: 51.10909091 | AC84: 51.3 | AD84: 51.43636364 | AE84: 51.51818182 | AF84: =a0*$A84-_a1*$A84^2+(a0*AF$53-_a1*AF$53^2)/(1+dr) -> 51.54545455 | AG84: 51.51818182 | AH84: 51.43636364 | AI84: 51.3 | AJ84: 51.10909091 | AK84: 50.86363636 | AL84: 50.56363636 | AM84: 50.20909091 | AN84: 49.8 | AO84: 49.33636364 | AP84: =a0*$A84-_a1*$A84^2+(a0*AP$53-_a1*AP$53^2)/(1+dr) -> 48.81818182 | AQ84: 48.24545455 | AR84: 47.61818182 | AS84: 46.93636364 | AT84: 46.2 | AU84: 45.40909091 | AV84: 44.56363636 | AW84: 43.66363636 | AX84: 42.70909091 | AY84: 41.7 | AZ84: =a0*$A84-_a1*$A84^2+(a0*AZ$53-_a1*AZ$53^2)/(1+dr) -> 40.63636364 | BA84: 39.51818182 | BB84: 38.34545455 | BC84: 37.11818182 | BD84: 35.83636364 | BE84: 34.5 | BF84: 33.10909091 | BG84: 31.66363636 | BH84: 30.16363636 | BI84: 28.60909091 | BJ84: 27
A85: 3.1 | B85: 26.97 | C85: 28.57909091 | D85: 30.13363636 | E85: 31.63363636 | F85: 33.07909091 | G85: 34.47 | H85: 35.80636364 | I85: 37.08818182 | J85: 38.31545455 | K85: 39.48818182 | L85: 40.60636364 | M85: 41.67 | N85: 42.67909091 | O85: 43.63363636 | P85: 44.53363636 | Q85: 45.37909091 | R85: 46.17 | S85: 46.90636364 | T85: 47.58818182 | U85: 48.21545455 | V85: 48.78818182 | W85: 49.30636364 | X85: 49.77 | Y85: 50.17909091 | Z85: 50.53363636 | AA85: 50.83363636 | AB85: 51.07909091 | AC85: 51.27 | AD85: 51.40636364 | AE85: 51.48818182 | AF85: 51.51545455 | AG85: 51.48818182 | AH85: 51.40636364 | AI85: 51.27 | AJ85: 51.07909091 | AK85: 50.83363636 | AL85: 50.53363636 | AM85: 50.17909091 | AN85: 49.77 | AO85: 49.30636364 | AP85: 48.78818182 | AQ85: 48.21545455 | AR85: 47.58818182 | AS85: 46.90636364 | AT85: 46.17 | AU85: 45.37909091 | AV85: 44.53363636 | AW85: 43.63363636 | AX85: 42.67909091 | AY85: 41.67 | AZ85: 40.60636364 | BA85: 39.48818182 | BB85: 38.31545455 | BC85: 37.08818182 | BD85: 35.80636364 | BE85: 34.47 | BF85: 33.07909091 | BG85: 31.63363636 | BH85: 30.13363636 | BI85: 28.57909091 | BJ85: 26.97
A86: 3.2 | B86: 26.88 | C86: 28.48909091 | D86: 30.04363636 | E86: 31.54363636 | F86: 32.98909091 | G86: 34.38 | H86: 35.71636364 | I86: 36.99818182 | J86: 38.22545455 | K86: 39.39818182 | L86: 40.51636364 | M86: 41.58 | N86: 42.58909091 | O86: 43.54363636 | P86: 44.44363636 | Q86: 45.28909091 | R86: 46.08 | S86: 46.81636364 | T86: 47.49818182 | U86: 48.12545455 | V86: 48.69818182 | W86: 49.21636364 | X86: 49.68 | Y86: 50.08909091 | Z86: 50.44363636 | AA86: 50.74363636 | AB86: 50.98909091 | AC86: 51.18 | AD86: 51.31636364 | AE86: 51.39818182 | AF86: 51.42545455 | AG86: 51.39818182 | AH86: 51.31636364 | AI86: 51.18 | AJ86: 50.98909091 | AK86: 50.74363636 | AL86: 50.44363636 | AM86: 50.08909091 | AN86: 49.68 | AO86: 49.21636364 | AP86: 48.69818182 | AQ86: 48.12545455 | AR86: 47.49818182 | AS86: 46.81636364 | AT86: 46.08 | AU86: 45.28909091 | AV86: 44.44363636 | AW86: 43.54363636 | AX86: 42.58909091 | AY86: 41.58 | AZ86: 40.51636364 | BA86: 39.39818182 | BB86: 38.22545455 | BC86: 36.99818182 | BD86: 35.71636364 | BE86: 34.38 | BF86: 32.98909091 | BG86: 31.54363636 | BH86: 30.04363636 | BI86: 28.48909091 | BJ86: 26.88
A87: 3.3 | B87: 26.73 | C87: 28.33909091 | D87: 29.89363636 | E87: 31.39363636 | F87: 32.83909091 | G87: 34.23 | H87: 35.56636364 | I87: 36.84818182 | J87: 38.07545455 | K87: 39.24818182 | L87: 40.36636364 | M87: 41.43 | N87: 42.43909091 | O87: 43.39363636 | P87: 44.29363636 | Q87: 45.13909091 | R87: 45.93 | S87: 46.66636364 | T87: 47.34818182 | U87: 47.97545455 | V87: 48.54818182 | W87: 49.06636364 | X87: 49.53 | Y87: 49.93909091 | Z87: 50.29363636 | AA87: 50.59363636 | AB87: 50.83909091 | AC87: 51.03 | AD87: 51.16636364 | AE87: 51.24818182 | AF87: 51.27545455 | AG87: 51.24818182 | AH87: 51.16636364 | AI87: 51.03 | AJ87: 50.83909091 | AK87: 50.59363636 | AL87: 50.29363636 | AM87: 49.93909091 | AN87: 49.53 | AO87: 49.06636364 | AP87: 48.54818182 | AQ87: 47.97545455 | AR87: 47.34818182 | AS87: 46.66636364 | AT87: 45.93 | AU87: 45.13909091 | AV87: 44.29363636 | AW87: 43.39363636 | AX87: 42.43909091 | AY87: 41.43 | AZ87: 40.36636364 | BA87: 39.24818182 | BB87: 38.07545455 | BC87: 36.84818182 | BD87: 35.56636364 | BE87: 34.23 | BF87: 32.83909091 | BG87: 31.39363636 | BH87: 29.89363636 | BI87: 28.33909091 | BJ87: 26.73
A88: 3.4 | B88: 26.52 | C88: 28.12909091 | D88: 29.68363636 | E88: 31.18363636 | F88: 32.62909091 | G88: 34.02 | H88: 35.35636364 | I88: 36.63818182 | J88: 37.86545455 | K88: 39.03818182 | L88: 40.15636364 | M88: 41.22 | N88: 42.22909091 | O88: 43.18363636 | P88: 44.08363636 | Q88: 44.92909091 | R88: 45.72 | S88: 46.45636364 | T88: 47.13818182 | U88: 47.76545455 | V88: 48.33818182 | W88: 48.85636364 | X88: 49.32 | Y88: 49.72909091 | Z88: 50.08363636 | AA88: 50.38363636 | AB88: 50.62909091 | AC88: 50.82 | AD88: 50.95636364 | AE88: 51.03818182 | AF88: 51.06545455 | AG88: 51.03818182 | AH88: 50.95636364 | AI88: 50.82 | AJ88: 50.62909091 | AK88: 50.38363636 | AL88: 50.08363636 | AM88: 49.72909091 | AN88: 49.32 | AO88: 48.85636364 | AP88: 48.33818182 | AQ88: 47.76545455 | AR88: 47.13818182 | AS88: 46.45636364 | AT88: 45.72 | AU88: 44.92909091 | AV88: 44.08363636 | AW88: 43.18363636 | AX88: 42.22909091 | AY88: 41.22 | AZ88: 40.15636364 | BA88: 39.03818182 | BB88: 37.86545455 | BC88: 36.63818182 | BD88: 35.35636364 | BE88: 34.02 | BF88: 32.62909091 | BG88: 31.18363636 | BH88: 29.68363636 | BI88: 28.12909091 | BJ88: 26.52
A89: 3.5 | B89: 26.25 | C89: 27.85909091 | D89: 29.41363636 | E89: 30.91363636 | F89: 32.35909091 | G89: 33.75 | H89: 35.08636364 | I89: 36.36818182 | J89: 37.59545455 | K89: 38.76818182 | L89: 39.88636364 | M89: 40.95 | N89: 41.95909091 | O89: 42.91363636 | P89: 43.81363636 | Q89: 44.65909091 | R89: 45.45 | S89: 46.18636364 | T89: 46.86818182 | U89: 47.49545455 | V89: 48.06818182 | W89: 48.58636364 | X89: 49.05 | Y89: 49.45909091 | Z89: 49.81363636 | AA89: 50.11363636 | AB89: 50.35909091 | AC89: 50.55 | AD89: 50.68636364 | AE89: 50.76818182 | AF89: 50.79545455 | AG89: 50.76818182 | AH89: 50.68636364 | AI89: 50.55 | AJ89: 50.35909091 | AK89: 50.11363636 | AL89: 49.81363636 | AM89: 49.45909091 | AN89: 49.05 | AO89: 48.58636364 | AP89: 48.06818182 | AQ89: 47.49545455 | AR89: 46.86818182 | AS89: 46.18636364 | AT89: 45.45 | AU89: 44.65909091 | AV89: 43.81363636 | AW89: 42.91363636 | AX89: 41.95909091 | AY89: 40.95 | AZ89: 39.88636364 | BA89: 38.76818182 | BB89: 37.59545455 | BC89: 36.36818182 | BD89: 35.08636364 | BE89: 33.75 | BF89: 32.35909091 | BG89: 30.91363636 | BH89: 29.41363636 | BI89: 27.85909091 | BJ89: 26.25
A90: 3.6 | B90: 25.92 | C90: 27.52909091 | D90: 29.08363636 | E90: 30.58363636 | F90: 32.02909091 | G90: 33.42 | H90: 34.75636364 | I90: 36.03818182 | J90: 37.26545455 | K90: 38.43818182 | L90: 39.55636364 | M90: 40.62 | N90: 41.62909091 | O90: 42.58363636 | P90: 43.48363636 | Q90: 44.32909091 | R90: 45.12 | S90: 45.85636364 | T90: 46.53818182 | U90: 47.16545455 | V90: 47.73818182 | W90: 48.25636364 | X90: 48.72 | Y90: 49.12909091 | Z90: 49.48363636 | AA90: 49.78363636 | AB90: 50.02909091 | AC90: 50.22 | AD90: 50.35636364 | AE90: 50.43818182 | AF90: 50.46545455 | AG90: 50.43818182 | AH90: 50.35636364 | AI90: 50.22 | AJ90: 50.02909091 | AK90: 49.78363636 | AL90: 49.48363636 | AM90: 49.12909091 | AN90: 48.72 | AO90: 48.25636364 | AP90: 47.73818182 | AQ90: 47.16545455 | AR90: 46.53818182 | AS90: 45.85636364 | AT90: 45.12 | AU90: 44.32909091 | AV90: 43.48363636 | AW90: 42.58363636 | AX90: 41.62909091 | AY90: 40.62 | AZ90: 39.55636364 | BA90: 38.43818182 | BB90: 37.26545455 | BC90: 36.03818182 | BD90: 34.75636364 | BE90: 33.42 | BF90: 32.02909091 | BG90: 30.58363636 | BH90: 29.08363636 | BI90: 27.52909091 | BJ90: 25.92
A91: 3.7 | B91: 25.53 | C91: 27.13909091 | D91: 28.69363636 | E91: 30.19363636 | F91: 31.63909091 | G91: 33.03 | H91: 34.36636364 | I91: 35.64818182 | J91: 36.87545455 | K91: 38.04818182 | L91: 39.16636364 | M91: 40.23 | N91: 41.23909091 | O91: 42.19363636 | P91: 43.09363636 | Q91: 43.93909091 | R91: 44.73 | S91: 45.46636364 | T91: 46.14818182 | U91: 46.77545455 | V91: 47.34818182 | W91: 47.86636364 | X91: 48.33 | Y91: 48.73909091 | Z91: 49.09363636 | AA91: 49.39363636 | AB91: 49.63909091 | AC91: 49.83 | AD91: 49.96636364 | AE91: 50.04818182 | AF91: 50.07545455 | AG91: 50.04818182 | AH91: 49.96636364 | AI91: 49.83 | AJ91: 49.63909091 | AK91: 49.39363636 | AL91: 49.09363636 | AM91: 48.73909091 | AN91: 48.33 | AO91: 47.86636364 | AP91: 47.34818182 | AQ91: 46.77545455 | AR91: 46.14818182 | AS91: 45.46636364 | AT91: 44.73 | AU91: 43.93909091 | AV91: 43.09363636 | AW91: 42.19363636 | AX91: 41.23909091 | AY91: 40.23 | AZ91: 39.16636364 | BA91: 38.04818182 | BB91: 36.87545455 | BC91: 35.64818182 | BD91: 34.36636364 | BE91: 33.03 | BF91: 31.63909091 | BG91: 30.19363636 | BH91: 28.69363636 | BI91: 27.13909091 | BJ91: 25.53
A92: 3.8 | B92: 25.08 | C92: 26.68909091 | D92: 28.24363636 | E92: 29.74363636 | F92: 31.18909091 | G92: 32.58 | H92: 33.91636364 | I92: 35.19818182 | J92: 36.42545455 | K92: 37.59818182 | L92: 38.71636364 | M92: 39.78 | N92: 40.78909091 | O92: 41.74363636 | P92: 42.64363636 | Q92: 43.48909091 | R92: 44.28 | S92: 45.01636364 | T92: 45.69818182 | U92: 46.32545455 | V92: 46.89818182 | W92: 47.41636364 | X92: 47.88 | Y92: 48.28909091 | Z92: 48.64363636 | AA92: 48.94363636 | AB92: 49.18909091 | AC92: 49.38 | AD92: 49.51636364 | AE92: 49.59818182 | AF92: 49.62545455 | AG92: 49.59818182 | AH92: 49.51636364 | AI92: 49.38 | AJ92: 49.18909091 | AK92: 48.94363636 | AL92: 48.64363636 | AM92: 48.28909091 | AN92: 47.88 | AO92: 47.41636364 | AP92: 46.89818182 | AQ92: 46.32545455 | AR92: 45.69818182 | AS92: 45.01636364 | AT92: 44.28 | AU92: 43.48909091 | AV92: 42.64363636 | AW92: 41.74363636 | AX92: 40.78909091 | AY92: 39.78 | AZ92: 38.71636364 | BA92: 37.59818182 | BB92: 36.42545455 | BC92: 35.19818182 | BD92: 33.91636364 | BE92: 32.58 | BF92: 31.18909091 | BG92: 29.74363636 | BH92: 28.24363636 | BI92: 26.68909091 | BJ92: 25.08
A93: 3.9 | B93: 24.57 | C93: 26.17909091 | D93: 27.73363636 | E93: 29.23363636 | F93: 30.67909091 | G93: 32.07 | H93: 33.40636364 | I93: 34.68818182 | J93: 35.91545455 | K93: 37.08818182 | L93: 38.20636364 | M93: 39.27 | N93: 40.27909091 | O93: 41.23363636 | P93: 42.13363636 | Q93: 42.97909091 | R93: 43.77 | S93: 44.50636364 | T93: 45.18818182 | U93: 45.81545455 | V93: 46.38818182 | W93: 46.90636364 | X93: 47.37 | Y93: 47.77909091 | Z93: 48.13363636 | AA93: 48.43363636 | AB93: 48.67909091 | AC93: 48.87 | AD93: 49.00636364 | AE93: 49.08818182 | AF93: 49.11545455 | AG93: 49.08818182 | AH93: 49.00636364 | AI93: 48.87 | AJ93: 48.67909091 | AK93: 48.43363636 | AL93: 48.13363636 | AM93: 47.77909091 | AN93: 47.37 | AO93: 46.90636364 | AP93: 46.38818182 | AQ93: 45.81545455 | AR93: 45.18818182 | AS93: 44.50636364 | AT93: 43.77 | AU93: 42.97909091 | AV93: 42.13363636 | AW93: 41.23363636 | AX93: 40.27909091 | AY93: 39.27 | AZ93: 38.20636364 | BA93: 37.08818182 | BB93: 35.91545455 | BC93: 34.68818182 | BD93: 33.40636364 | BE93: 32.07 | BF93: 30.67909091 | BG93: 29.23363636 | BH93: 27.73363636 | BI93: 26.17909091 | BJ93: 24.57
A94: 4 | B94: =a0*$A94-_a1*$A94^2+(a0*B$53-_a1*B$53^2)/(1+dr) -> 24 | C94: 25.60909091 | D94: 27.16363636 | E94: 28.66363636 | F94: 30.10909091 | G94: 31.5 | H94: 32.83636364 | I94: 34.11818182 | J94: 35.34545455 | K94: 36.51818182 | L94: =a0*$A94-_a1*$A94^2+(a0*L$53-_a1*L$53^2)/(1+dr) -> 37.63636364 | M94: 38.7 | N94: 39.70909091 | O94: 40.66363636 | P94: 41.56363636 | Q94: 42.40909091 | R94: 43.2 | S94: 43.93636364 | T94: 44.61818182 | U94: 45.24545455 | V94: =a0*$A94-_a1*$A94^2+(a0*V$53-_a1*V$53^2)/(1+dr) -> 45.81818182 | W94: 46.33636364 | X94: 46.8 | Y94: 47.20909091 | Z94: 47.56363636 | AA94: 47.86363636 | AB94: 48.10909091 | AC94: 48.3 | AD94: 48.43636364 | AE94: 48.51818182 | AF94: =a0*$A94-_a1*$A94^2+(a0*AF$53-_a1*AF$53^2)/(1+dr) -> 48.54545455 | AG94: 48.51818182 | AH94: 48.43636364 | AI94: 48.3 | AJ94: 48.10909091 | AK94: 47.86363636 | AL94: 47.56363636 | AM94: 47.20909091 | AN94: 46.8 | AO94: 46.33636364 | AP94: =a0*$A94-_a1*$A94^2+(a0*AP$53-_a1*AP$53^2)/(1+dr) -> 45.81818182 | AQ94: 45.24545455 | AR94: 44.61818182 | AS94: 43.93636364 | AT94: 43.2 | AU94: 42.40909091 | AV94: 41.56363636 | AW94: 40.66363636 | AX94: 39.70909091 | AY94: 38.7 | AZ94: =a0*$A94-_a1*$A94^2+(a0*AZ$53-_a1*AZ$53^2)/(1+dr) -> 37.63636364 | BA94: 36.51818182 | BB94: 35.34545455 | BC94: 34.11818182 | BD94: 32.83636364 | BE94: 31.5 | BF94: 30.10909091 | BG94: 28.66363636 | BH94: 27.16363636 | BI94: 25.60909091 | BJ94: 24
A95: 4.1 | B95: 23.37 | C95: 24.97909091 | D95: 26.53363636 | E95: 28.03363636 | F95: 29.47909091 | G95: 30.87 | H95: 32.20636364 | I95: 33.48818182 | J95: 34.71545455 | K95: 35.88818182 | L95: 37.00636364 | M95: 38.07 | N95: 39.07909091 | O95: 40.03363636 | P95: 40.93363636 | Q95: 41.77909091 | R95: 42.57 | S95: 43.30636364 | T95: 43.98818182 | U95: 44.61545455 | V95: 45.18818182 | W95: 45.70636364 | X95: 46.17 | Y95: 46.57909091 | Z95: 46.93363636 | AA95: 47.23363636 | AB95: 47.47909091 | AC95: 47.67 | AD95: 47.80636364 | AE95: 47.88818182 | AF95: 47.91545455 | AG95: 47.88818182 | AH95: 47.80636364 | AI95: 47.67 | AJ95: 47.47909091 | AK95: 47.23363636 | AL95: 46.93363636 | AM95: 46.57909091 | AN95: 46.17 | AO95: 45.70636364 | AP95: 45.18818182 | AQ95: 44.61545455 | AR95: 43.98818182 | AS95: 43.30636364 | AT95: 42.57 | AU95: 41.77909091 | AV95: 40.93363636 | AW95: 40.03363636 | AX95: 39.07909091 | AY95: 38.07 | AZ95: 37.00636364 | BA95: 35.88818182 | BB95: 34.71545455 | BC95: 33.48818182 | BD95: 32.20636364 | BE95: 30.87 | BF95: 29.47909091 | BG95: 28.03363636 | BH95: 26.53363636 | BI95: 24.97909091 | BJ95: 23.37
A96: 4.2 | B96: 22.68 | C96: 24.28909091 | D96: 25.84363636 | E96: 27.34363636 | F96: 28.78909091 | G96: 30.18 | H96: 31.51636364 | I96: 32.79818182 | J96: 34.02545455 | K96: 35.19818182 | L96: 36.31636364 | M96: 37.38 | N96: 38.38909091 | O96: 39.34363636 | P96: 40.24363636 | Q96: 41.08909091 | R96: 41.88 | S96: 42.61636364 | T96: 43.29818182 | U96: 43.92545455 | V96: 44.49818182 | W96: 45.01636364 | X96: 45.48 | Y96: 45.88909091 | Z96: 46.24363636 | AA96: 46.54363636 | AB96: 46.78909091 | AC96: 46.98 | AD96: 47.11636364 | AE96: 47.19818182 | AF96: 47.22545455 | AG96: 47.19818182 | AH96: 47.11636364 | AI96: 46.98 | AJ96: 46.78909091 | AK96: 46.54363636 | AL96: 46.24363636 | AM96: 45.88909091 | AN96: 45.48 | AO96: 45.01636364 | AP96: 44.49818182 | AQ96: 43.92545455 | AR96: 43.29818182 | AS96: 42.61636364 | AT96: 41.88 | AU96: 41.08909091 | AV96: 40.24363636 | AW96: 39.34363636 | AX96: 38.38909091 | AY96: 37.38 | AZ96: 36.31636364 | BA96: 35.19818182 | BB96: 34.02545455 | BC96: 32.79818182 | BD96: 31.51636364 | BE96: 30.18 | BF96: 28.78909091 | BG96: 27.34363636 | BH96: 25.84363636 | BI96: 24.28909091 | BJ96: 22.68
A97: 4.3 | B97: 21.93 | C97: 23.53909091 | D97: 25.09363636 | E97: 26.59363636 | F97: 28.03909091 | G97: 29.43 | H97: 30.76636364 | I97: 32.04818182 | J97: 33.27545455 | K97: 34.44818182 | L97: 35.56636364 | M97: 36.63 | N97: 37.63909091 | O97: 38.59363636 | P97: 39.49363636 | Q97: 40.33909091 | R97: 41.13 | S97: 41.86636364 | T97: 42.54818182 | U97: 43.17545455 | V97: 43.74818182 | W97: 44.26636364 | X97: 44.73 | Y97: 45.13909091 | Z97: 45.49363636 | AA97: 45.79363636 | AB97: 46.03909091 | AC97: 46.23 | AD97: 46.36636364 | AE97: 46.44818182 | AF97: 46.47545455 | AG97: 46.44818182 | AH97: 46.36636364 | AI97: 46.23 | AJ97: 46.03909091 | AK97: 45.79363636 | AL97: 45.49363636 | AM97: 45.13909091 | AN97: 44.73 | AO97: 44.26636364 | AP97: 43.74818182 | AQ97: 43.17545455 | AR97: 42.54818182 | AS97: 41.86636364 | AT97: 41.13 | AU97: 40.33909091 | AV97: 39.49363636 | AW97: 38.59363636 | AX97: 37.63909091 | AY97: 36.63 | AZ97: 35.56636364 | BA97: 34.44818182 | BB97: 33.27545455 | BC97: 32.04818182 | BD97: 30.76636364 | BE97: 29.43 | BF97: 28.03909091 | BG97: 26.59363636 | BH97: 25.09363636 | BI97: 23.53909091 | BJ97: 21.93
A98: 4.4 | B98: 21.12 | C98: 22.72909091 | D98: 24.28363636 | E98: 25.78363636 | F98: 27.22909091 | G98: 28.62 | H98: 29.95636364 | I98: 31.23818182 | J98: 32.46545455 | K98: 33.63818182 | L98: 34.75636364 | M98: 35.82 | N98: 36.82909091 | O98: 37.78363636 | P98: 38.68363636 | Q98: 39.52909091 | R98: 40.32 | S98: 41.05636364 | T98: 41.73818182 | U98: 42.36545455 | V98: 42.93818182 | W98: 43.45636364 | X98: 43.92 | Y98: 44.32909091 | Z98: 44.68363636 | AA98: 44.98363636 | AB98: 45.22909091 | AC98: 45.42 | AD98: 45.55636364 | AE98: 45.63818182 | AF98: 45.66545455 | AG98: 45.63818182 | AH98: 45.55636364 | AI98: 45.42 | AJ98: 45.22909091 | AK98: 44.98363636 | AL98: 44.68363636 | AM98: 44.32909091 | AN98: 43.92 | AO98: 43.45636364 | AP98: 42.93818182 | AQ98: 42.36545455 | AR98: 41.73818182 | AS98: 41.05636364 | AT98: 40.32 | AU98: 39.52909091 | AV98: 38.68363636 | AW98: 37.78363636 | AX98: 36.82909091 | AY98: 35.82 | AZ98: 34.75636364 | BA98: 33.63818182 | BB98: 32.46545455 | BC98: 31.23818182 | BD98: 29.95636364 | BE98: 28.62 | BF98: 27.22909091 | BG98: 25.78363636 | BH98: 24.28363636 | BI98: 22.72909091 | BJ98: 21.12
A99: 4.5 | B99: 20.25 | C99: 21.85909091 | D99: 23.41363636 | E99: 24.91363636 | F99: 26.35909091 | G99: 27.75 | H99: 29.08636364 | I99: 30.36818182 | J99: 31.59545455 | K99: 32.76818182 | L99: 33.88636364 | M99: 34.95 | N99: 35.95909091 | O99: 36.91363636 | P99: 37.81363636 | Q99: 38.65909091 | R99: 39.45 | S99: 40.18636364 | T99: 40.86818182 | U99: 41.49545455 | V99: 42.06818182 | W99: 42.58636364 | X99: 43.05 | Y99: 43.45909091 | Z99: 43.81363636 | AA99: 44.11363636 | AB99: 44.35909091 | AC99: 44.55 | AD99: 44.68636364 | AE99: 44.76818182 | AF99: 44.79545455 | AG99: 44.76818182 | AH99: 44.68636364 | AI99: 44.55 | AJ99: 44.35909091 | AK99: 44.11363636 | AL99: 43.81363636 | AM99: 43.45909091 | AN99: 43.05 | AO99: 42.58636364 | AP99: 42.06818182 | AQ99: 41.49545455 | AR99: 40.86818182 | AS99: 40.18636364 | AT99: 39.45 | AU99: 38.65909091 | AV99: 37.81363636 | AW99: 36.91363636 | AX99: 35.95909091 | AY99: 34.95 | AZ99: 33.88636364 | BA99: 32.76818182 | BB99: 31.59545455 | BC99: 30.36818182 | BD99: 29.08636364 | BE99: 27.75 | BF99: 26.35909091 | BG99: 24.91363636 | BH99: 23.41363636 | BI99: 21.85909091 | BJ99: 20.25
A100: 4.6 | B100: 19.32 | C100: 20.92909091 | D100: 22.48363636 | E100: 23.98363636 | F100: 25.42909091 | G100: 26.82 | H100: 28.15636364 | I100: 29.43818182 | J100: 30.66545455 | K100: 31.83818182 | L100: 32.95636364 | M100: 34.02 | N100: 35.02909091 | O100: 35.98363636 | P100: 36.88363636 | Q100: 37.72909091 | R100: 38.52 | S100: 39.25636364 | T100: 39.93818182 | U100: 40.56545455 | V100: 41.13818182 | W100: 41.65636364 | X100: 42.12 | Y100: 42.52909091 | Z100: 42.88363636 | AA100: 43.18363636 | AB100: 43.42909091 | AC100: 43.62 | AD100: 43.75636364 | AE100: 43.83818182 | AF100: 43.86545455 | AG100: 43.83818182 | AH100: 43.75636364 | AI100: 43.62 | AJ100: 43.42909091 | AK100: 43.18363636 | AL100: 42.88363636 | AM100: 42.52909091 | AN100: 42.12 | AO100: 41.65636364 | AP100: 41.13818182 | AQ100: 40.56545455 | AR100: 39.93818182 | AS100: 39.25636364 | AT100: 38.52 | AU100: 37.72909091 | AV100: 36.88363636 | AW100: 35.98363636 | AX100: 35.02909091 | AY100: 34.02 | AZ100: 32.95636364 | BA100: 31.83818182 | BB100: 30.66545455 | BC100: 29.43818182 | BD100: 28.15636364 | BE100: 26.82 | BF100: 25.42909091 | BG100: 23.98363636 | BH100: 22.48363636 | BI100: 20.92909091 | BJ100: 19.32
A101: 4.7 | B101: 18.33 | C101: 19.93909091 | D101: 21.49363636 | E101: 22.99363636 | F101: 24.43909091 | G101: 25.83 | H101: 27.16636364 | I101: 28.44818182 | J101: 29.67545455 | K101: 30.84818182 | L101: 31.96636364 | M101: 33.03 | N101: 34.03909091 | O101: 34.99363636 | P101: 35.89363636 | Q101: 36.73909091 | R101: 37.53 | S101: 38.26636364 | T101: 38.94818182 | U101: 39.57545455 | V101: 40.14818182 | W101: 40.66636364 | X101: 41.13 | Y101: 41.53909091 | Z101: 41.89363636 | AA101: 42.19363636 | AB101: 42.43909091 | AC101: 42.63 | AD101: 42.76636364 | AE101: 42.84818182 | AF101: 42.87545455 | AG101: 42.84818182 | AH101: 42.76636364 | AI101: 42.63 | AJ101: 42.43909091 | AK101: 42.19363636 | AL101: 41.89363636 | AM101: 41.53909091 | AN101: 41.13 | AO101: 40.66636364 | AP101: 40.14818182 | AQ101: 39.57545455 | AR101: 38.94818182 | AS101: 38.26636364 | AT101: 37.53 | AU101: 36.73909091 | AV101: 35.89363636 | AW101: 34.99363636 | AX101: 34.03909091 | AY101: 33.03 | AZ101: 31.96636364 | BA101: 30.84818182 | BB101: 29.67545455 | BC101: 28.44818182 | BD101: 27.16636364 | BE101: 25.83 | BF101: 24.43909091 | BG101: 22.99363636 | BH101: 21.49363636 | BI101: 19.93909091 | BJ101: 18.33
A102: 4.8 | B102: 17.28 | C102: 18.88909091 | D102: 20.44363636 | E102: 21.94363636 | F102: 23.38909091 | G102: 24.78 | H102: 26.11636364 | I102: 27.39818182 | J102: 28.62545455 | K102: 29.79818182 | L102: 30.91636364 | M102: 31.98 | N102: 32.98909091 | O102: 33.94363636 | P102: 34.84363636 | Q102: 35.68909091 | R102: 36.48 | S102: 37.21636364 | T102: 37.89818182 | U102: 38.52545455 | V102: 39.09818182 | W102: 39.61636364 | X102: 40.08 | Y102: 40.48909091 | Z102: 40.84363636 | AA102: 41.14363636 | AB102: 41.38909091 | AC102: 41.58 | AD102: 41.71636364 | AE102: 41.79818182 | AF102: 41.82545455 | AG102: 41.79818182 | AH102: 41.71636364 | AI102: 41.58 | AJ102: 41.38909091 | AK102: 41.14363636 | AL102: 40.84363636 | AM102: 40.48909091 | AN102: 40.08 | AO102: 39.61636364 | AP102: 39.09818182 | AQ102: 38.52545455 | AR102: 37.89818182 | AS102: 37.21636364 | AT102: 36.48 | AU102: 35.68909091 | AV102: 34.84363636 | AW102: 33.94363636 | AX102: 32.98909091 | AY102: 31.98 | AZ102: 30.91636364 | BA102: 29.79818182 | BB102: 28.62545455 | BC102: 27.39818182 | BD102: 26.11636364 | BE102: 24.78 | BF102: 23.38909091 | BG102: 21.94363636 | BH102: 20.44363636 | BI102: 18.88909091 | BJ102: 17.28
A103: 4.9 | B103: 16.17 | C103: 17.77909091 | D103: 19.33363636 | E103: 20.83363636 | F103: 22.27909091 | G103: 23.67 | H103: 25.00636364 | I103: 26.28818182 | J103: 27.51545455 | K103: 28.68818182 | L103: 29.80636364 | M103: 30.87 | N103: 31.87909091 | O103: 32.83363636 | P103: 33.73363636 | Q103: 34.57909091 | R103: 35.37 | S103: 36.10636364 | T103: 36.78818182 | U103: 37.41545455 | V103: 37.98818182 | W103: 38.50636364 | X103: 38.97 | Y103: 39.37909091 | Z103: 39.73363636 | AA103: 40.03363636 | AB103: 40.27909091 | AC103: 40.47 | AD103: 40.60636364 | AE103: 40.68818182 | AF103: 40.71545455 | AG103: 40.68818182 | AH103: 40.60636364 | AI103: 40.47 | AJ103: 40.27909091 | AK103: 40.03363636 | AL103: 39.73363636 | AM103: 39.37909091 | AN103: 38.97 | AO103: 38.50636364 | AP103: 37.98818182 | AQ103: 37.41545455 | AR103: 36.78818182 | AS103: 36.10636364 | AT103: 35.37 | AU103: 34.57909091 | AV103: 33.73363636 | AW103: 32.83363636 | AX103: 31.87909091 | AY103: 30.87 | AZ103: 29.80636364 | BA103: 28.68818182 | BB103: 27.51545455 | BC103: 26.28818182 | BD103: 25.00636364 | BE103: 23.67 | BF103: 22.27909091 | BG103: 20.83363636 | BH103: 19.33363636 | BI103: 17.77909091 | BJ103: 16.17
A104: 5 | B104: =a0*$A104-_a1*$A104^2+(a0*B$53-_a1*B$53^2)/(1+dr) -> 15 | C104: 16.60909091 | D104: 18.16363636 | E104: 19.66363636 | F104: 21.10909091 | G104: 22.5 | H104: 23.83636364 | I104: 25.11818182 | J104: 26.34545455 | K104: 27.51818182 | L104: =a0*$A104-_a1*$A104^2+(a0*L$53-_a1*L$53^2)/(1+dr) -> 28.63636364 | M104: 29.7 | N104: 30.70909091 | O104: 31.66363636 | P104: 32.56363636 | Q104: 33.40909091 | R104: 34.2 | S104: 34.93636364 | T104: 35.61818182 | U104: 36.24545455 | V104: =a0*$A104-_a1*$A104^2+(a0*V$53-_a1*V$53^2)/(1+dr) -> 36.81818182 | W104: 37.33636364 | X104: 37.8 | Y104: 38.20909091 | Z104: 38.56363636 | AA104: 38.86363636 | AB104: 39.10909091 | AC104: 39.3 | AD104: 39.43636364 | AE104: 39.51818182 | AF104: =a0*$A104-_a1*$A104^2+(a0*AF$53-_a1*AF$53^2)/(1+dr) -> 39.54545455 | AG104: 39.51818182 | AH104: 39.43636364 | AI104: 39.3 | AJ104: 39.10909091 | AK104: 38.86363636 | AL104: 38.56363636 | AM104: 38.20909091 | AN104: 37.8 | AO104: 37.33636364 | AP104: =a0*$A104-_a1*$A104^2+(a0*AP$53-_a1*AP$53^2)/(1+dr) -> 36.81818182 | AQ104: 36.24545455 | AR104: 35.61818182 | AS104: 34.93636364 | AT104: 34.2 | AU104: 33.40909091 | AV104: 32.56363636 | AW104: 31.66363636 | AX104: 30.70909091 | AY104: 29.7 | AZ104: =a0*$A104-_a1*$A104^2+(a0*AZ$53-_a1*AZ$53^2)/(1+dr) -> 28.63636364 | BA104: 27.51818182 | BB104: 26.34545455 | BC104: 25.11818182 | BD104: 23.83636364 | BE104: 22.5 | BF104: 21.10909091 | BG104: 19.66363636 | BH104: 18.16363636 | BI104: 16.60909091 | BJ104: 15
A105: 5.1 | B105: 13.77 | C105: 15.37909091 | D105: 16.93363636 | E105: 18.43363636 | F105: 19.87909091 | G105: 21.27 | H105: 22.60636364 | I105: 23.88818182 | J105: 25.11545455 | K105: 26.28818182 | L105: 27.40636364 | M105: 28.47 | N105: 29.47909091 | O105: 30.43363636 | P105: 31.33363636 | Q105: 32.17909091 | R105: 32.97 | S105: 33.70636364 | T105: 34.38818182 | U105: 35.01545455 | V105: 35.58818182 | W105: 36.10636364 | X105: 36.57 | Y105: 36.97909091 | Z105: 37.33363636 | AA105: 37.63363636 | AB105: 37.87909091 | AC105: 38.07 | AD105: 38.20636364 | AE105: 38.28818182 | AF105: 38.31545455 | AG105: 38.28818182 | AH105: 38.20636364 | AI105: 38.07 | AJ105: 37.87909091 | AK105: 37.63363636 | AL105: 37.33363636 | AM105: 36.97909091 | AN105: 36.57 | AO105: 36.10636364 | AP105: 35.58818182 | AQ105: 35.01545455 | AR105: 34.38818182 | AS105: 33.70636364 | AT105: 32.97 | AU105: 32.17909091 | AV105: 31.33363636 | AW105: 30.43363636 | AX105: 29.47909091 | AY105: 28.47 | AZ105: 27.40636364 | BA105: 26.28818182 | BB105: 25.11545455 | BC105: 23.88818182 | BD105: 22.60636364 | BE105: 21.27 | BF105: 19.87909091 | BG105: 18.43363636 | BH105: 16.93363636 | BI105: 15.37909091 | BJ105: 13.77
A106: 5.2 | B106: 12.48 | C106: 14.08909091 | D106: 15.64363636 | E106: 17.14363636 | F106: 18.58909091 | G106: 19.98 | H106: 21.31636364 | I106: 22.59818182 | J106: 23.82545455 | K106: 24.99818182 | L106: 26.11636364 | M106: 27.18 | N106: 28.18909091 | O106: 29.14363636 | P106: 30.04363636 | Q106: 30.88909091 | R106: 31.68 | S106: 32.41636364 | T106: 33.09818182 | U106: 33.72545455 | V106: 34.29818182 | W106: 34.81636364 | X106: 35.28 | Y106: 35.68909091 | Z106: 36.04363636 | AA106: 36.34363636 | AB106: 36.58909091 | AC106: 36.78 | AD106: 36.91636364 | AE106: 36.99818182 | AF106: 37.02545455 | AG106: 36.99818182 | AH106: 36.91636364 | AI106: 36.78 | AJ106: 36.58909091 | AK106: 36.34363636 | AL106: 36.04363636 | AM106: 35.68909091 | AN106: 35.28 | AO106: 34.81636364 | AP106: 34.29818182 | AQ106: 33.72545455 | AR106: 33.09818182 | AS106: 32.41636364 | AT106: 31.68 | AU106: 30.88909091 | AV106: 30.04363636 | AW106: 29.14363636 | AX106: 28.18909091 | AY106: 27.18 | AZ106: 26.11636364 | BA106: 24.99818182 | BB106: 23.82545455 | BC106: 22.59818182 | BD106: 21.31636364 | BE106: 19.98 | BF106: 18.58909091 | BG106: 17.14363636 | BH106: 15.64363636 | BI106: 14.08909091 | BJ106: 12.48
A107: 5.3 | B107: 11.13 | C107: 12.73909091 | D107: 14.29363636 | E107: 15.79363636 | F107: 17.23909091 | G107: 18.63 | H107: 19.96636364 | I107: 21.24818182 | J107: 22.47545455 | K107: 23.64818182 | L107: 24.76636364 | M107: 25.83 | N107: 26.83909091 | O107: 27.79363636 | P107: 28.69363636 | Q107: 29.53909091 | R107: 30.33 | S107: 31.06636364 | T107: 31.74818182 | U107: 32.37545455 | V107: 32.94818182 | W107: 33.46636364 | X107: 33.93 | Y107: 34.33909091 | Z107: 34.69363636 | AA107: 34.99363636 | AB107: 35.23909091 | AC107: 35.43 | AD107: 35.56636364 | AE107: 35.64818182 | AF107: 35.67545455 | AG107: 35.64818182 | AH107: 35.56636364 | AI107: 35.43 | AJ107: 35.23909091 | AK107: 34.99363636 | AL107: 34.69363636 | AM107: 34.33909091 | AN107: 33.93 | AO107: 33.46636364 | AP107: 32.94818182 | AQ107: 32.37545455 | AR107: 31.74818182 | AS107: 31.06636364 | AT107: 30.33 | AU107: 29.53909091 | AV107: 28.69363636 | AW107: 27.79363636 | AX107: 26.83909091 | AY107: 25.83 | AZ107: 24.76636364 | BA107: 23.64818182 | BB107: 22.47545455 | BC107: 21.24818182 | BD107: 19.96636364 | BE107: 18.63 | BF107: 17.23909091 | BG107: 15.79363636 | BH107: 14.29363636 | BI107: 12.73909091 | BJ107: 11.13
A108: 5.4 | B108: 9.72 | C108: 11.32909091 | D108: 12.88363636 | E108: 14.38363636 | F108: 15.82909091 | G108: 17.22 | H108: 18.55636364 | I108: 19.83818182 | J108: 21.06545455 | K108: 22.23818182 | L108: 23.35636364 | M108: 24.42 | N108: 25.42909091 | O108: 26.38363636 | P108: 27.28363636 | Q108: 28.12909091 | R108: 28.92 | S108: 29.65636364 | T108: 30.33818182 | U108: 30.96545455 | V108: 31.53818182 | W108: 32.05636364 | X108: 32.52 | Y108: 32.92909091 | Z108: 33.28363636 | AA108: 33.58363636 | AB108: 33.82909091 | AC108: 34.02 | AD108: 34.15636364 | AE108: 34.23818182 | AF108: 34.26545455 | AG108: 34.23818182 | AH108: 34.15636364 | AI108: 34.02 | AJ108: 33.82909091 | AK108: 33.58363636 | AL108: 33.28363636 | AM108: 32.92909091 | AN108: 32.52 | AO108: 32.05636364 | AP108: 31.53818182 | AQ108: 30.96545455 | AR108: 30.33818182 | AS108: 29.65636364 | AT108: 28.92 | AU108: 28.12909091 | AV108: 27.28363636 | AW108: 26.38363636 | AX108: 25.42909091 | AY108: 24.42 | AZ108: 23.35636364 | BA108: 22.23818182 | BB108: 21.06545455 | BC108: 19.83818182 | BD108: 18.55636364 | BE108: 17.22 | BF108: 15.82909091 | BG108: 14.38363636 | BH108: 12.88363636 | BI108: 11.32909091 | BJ108: 9.72
A109: 5.5 | B109: 8.25 | C109: 9.859090909 | D109: 11.41363636 | E109: 12.91363636 | F109: 14.35909091 | G109: 15.75 | H109: 17.08636364 | I109: 18.36818182 | J109: 19.59545455 | K109: 20.76818182 | L109: 21.88636364 | M109: 22.95 | N109: 23.95909091 | O109: 24.91363636 | P109: 25.81363636 | Q109: 26.65909091 | R109: 27.45 | S109: 28.18636364 | T109: 28.86818182 | U109: 29.49545455 | V109: 30.06818182 | W109: 30.58636364 | X109: 31.05 | Y109: 31.45909091 | Z109: 31.81363636 | AA109: 32.11363636 | AB109: 32.35909091 | AC109: 32.55 | AD109: 32.68636364 | AE109: 32.76818182 | AF109: 32.79545455 | AG109: 32.76818182 | AH109: 32.68636364 | AI109: 32.55 | AJ109: 32.35909091 | AK109: 32.11363636 | AL109: 31.81363636 | AM109: 31.45909091 | AN109: 31.05 | AO109: 30.58636364 | AP109: 30.06818182 | AQ109: 29.49545455 | AR109: 28.86818182 | AS109: 28.18636364 | AT109: 27.45 | AU109: 26.65909091 | AV109: 25.81363636 | AW109: 24.91363636 | AX109: 23.95909091 | AY109: 22.95 | AZ109: 21.88636364 | BA109: 20.76818182 | BB109: 19.59545455 | BC109: 18.36818182 | BD109: 17.08636364 | BE109: 15.75 | BF109: 14.35909091 | BG109: 12.91363636 | BH109: 11.41363636 | BI109: 9.859090909 | BJ109: 8.25
A110: 5.6 | B110: 6.72 | C110: 8.329090909 | D110: 9.883636364 | E110: 11.38363636 | F110: 12.82909091 | G110: 14.22 | H110: 15.55636364 | I110: 16.83818182 | J110: 18.06545455 | K110: 19.23818182 | L110: 20.35636364 | M110: 21.42 | N110: 22.42909091 | O110: 23.38363636 | P110: 24.28363636 | Q110: 25.12909091 | R110: 25.92 | S110: 26.65636364 | T110: 27.33818182 | U110: 27.96545455 | V110: 28.53818182 | W110: 29.05636364 | X110: 29.52 | Y110: 29.92909091 | Z110: 30.28363636 | AA110: 30.58363636 | AB110: 30.82909091 | AC110: 31.02 | AD110: 31.15636364 | AE110: 31.23818182 | AF110: 31.26545455 | AG110: 31.23818182 | AH110: 31.15636364 | AI110: 31.02 | AJ110: 30.82909091 | AK110: 30.58363636 | AL110: 30.28363636 | AM110: 29.92909091 | AN110: 29.52 | AO110: 29.05636364 | AP110: 28.53818182 | AQ110: 27.96545455 | AR110: 27.33818182 | AS110: 26.65636364 | AT110: 25.92 | AU110: 25.12909091 | AV110: 24.28363636 | AW110: 23.38363636 | AX110: 22.42909091 | AY110: 21.42 | AZ110: 20.35636364 | BA110: 19.23818182 | BB110: 18.06545455 | BC110: 16.83818182 | BD110: 15.55636364 | BE110: 14.22 | BF110: 12.82909091 | BG110: 11.38363636 | BH110: 9.883636364 | BI110: 8.329090909 | BJ110: 6.72
A111: 5.7 | B111: 5.13 | C111: 6.739090909 | D111: 8.293636364 | E111: 9.793636364 | F111: 11.23909091 | G111: 12.63 | H111: 13.96636364 | I111: 15.24818182 | J111: 16.47545455 | K111: 17.64818182 | L111: 18.76636364 | M111: 19.83 | N111: 20.83909091 | O111: 21.79363636 | P111: 22.69363636 | Q111: 23.53909091 | R111: 24.33 | S111: 25.06636364 | T111: 25.74818182 | U111: 26.37545455 | V111: 26.94818182 | W111: 27.46636364 | X111: 27.93 | Y111: 28.33909091 | Z111: 28.69363636 | AA111: 28.99363636 | AB111: 29.23909091 | AC111: 29.43 | AD111: 29.56636364 | AE111: 29.64818182 | AF111: 29.67545455 | AG111: 29.64818182 | AH111: 29.56636364 | AI111: 29.43 | AJ111: 29.23909091 | AK111: 28.99363636 | AL111: 28.69363636 | AM111: 28.33909091 | AN111: 27.93 | AO111: 27.46636364 | AP111: 26.94818182 | AQ111: 26.37545455 | AR111: 25.74818182 | AS111: 25.06636364 | AT111: 24.33 | AU111: 23.53909091 | AV111: 22.69363636 | AW111: 21.79363636 | AX111: 20.83909091 | AY111: 19.83 | AZ111: 18.76636364 | BA111: 17.64818182 | BB111: 16.47545455 | BC111: 15.24818182 | BD111: 13.96636364 | BE111: 12.63 | BF111: 11.23909091 | BG111: 9.793636364 | BH111: 8.293636364 | BI111: 6.739090909 | BJ111: 5.13
A112: 5.8 | B112: 3.48 | C112: 5.089090909 | D112: 6.643636364 | E112: 8.143636364 | F112: 9.589090909 | G112: 10.98 | H112: 12.31636364 | I112: 13.59818182 | J112: 14.82545455 | K112: 15.99818182 | L112: 17.11636364 | M112: 18.18 | N112: 19.18909091 | O112: 20.14363636 | P112: 21.04363636 | Q112: 21.88909091 | R112: 22.68 | S112: 23.41636364 | T112: 24.09818182 | U112: 24.72545455 | V112: 25.29818182 | W112: 25.81636364 | X112: 26.28 | Y112: 26.68909091 | Z112: 27.04363636 | AA112: 27.34363636 | AB112: 27.58909091 | AC112: 27.78 | AD112: 27.91636364 | AE112: 27.99818182 | AF112: 28.02545455 | AG112: 27.99818182 | AH112: 27.91636364 | AI112: 27.78 | AJ112: 27.58909091 | AK112: 27.34363636 | AL112: 27.04363636 | AM112: 26.68909091 | AN112: 26.28 | AO112: 25.81636364 | AP112: 25.29818182 | AQ112: 24.72545455 | AR112: 24.09818182 | AS112: 23.41636364 | AT112: 22.68 | AU112: 21.88909091 | AV112: 21.04363636 | AW112: 20.14363636 | AX112: 19.18909091 | AY112: 18.18 | AZ112: 17.11636364 | BA112: 15.99818182 | BB112: 14.82545455 | BC112: 13.59818182 | BD112: 12.31636364 | BE112: 10.98 | BF112: 9.589090909 | BG112: 8.143636364 | BH112: 6.643636364 | BI112: 5.089090909 | BJ112: 3.48
A113: 5.9 | B113: 1.77 | C113: 3.379090909 | D113: 4.933636364 | E113: 6.433636364 | F113: 7.879090909 | G113: 9.27 | H113: 10.60636364 | I113: 11.88818182 | J113: 13.11545455 | K113: 14.28818182 | L113: 15.40636364 | M113: 16.47 | N113: 17.47909091 | O113: 18.43363636 | P113: 19.33363636 | Q113: 20.17909091 | R113: 20.97 | S113: 21.70636364 | T113: 22.38818182 | U113: 23.01545455 | V113: 23.58818182 | W113: 24.10636364 | X113: 24.57 | Y113: 24.97909091 | Z113: 25.33363636 | AA113: 25.63363636 | AB113: 25.87909091 | AC113: 26.07 | AD113: 26.20636364 | AE113: 26.28818182 | AF113: 26.31545455 | AG113: 26.28818182 | AH113: 26.20636364 | AI113: 26.07 | AJ113: 25.87909091 | AK113: 25.63363636 | AL113: 25.33363636 | AM113: 24.97909091 | AN113: 24.57 | AO113: 24.10636364 | AP113: 23.58818182 | AQ113: 23.01545455 | AR113: 22.38818182 | AS113: 21.70636364 | AT113: 20.97 | AU113: 20.17909091 | AV113: 19.33363636 | AW113: 18.43363636 | AX113: 17.47909091 | AY113: 16.47 | AZ113: 15.40636364 | BA113: 14.28818182 | BB113: 13.11545455 | BC113: 11.88818182 | BD113: 10.60636364 | BE113: 9.27 | BF113: 7.879090909 | BG113: 6.433636364 | BH113: 4.933636364 | BI113: 3.379090909 | BJ113: 1.77
A114: 6 | B114: 0 | C114: 1.609090909 | D114: 3.163636364 | E114: 4.663636364 | F114: 6.109090909 | G114: 7.5 | H114: 8.836363636 | I114: 10.11818182 | J114: 11.34545455 | K114: 12.51818182 | L114: 13.63636364 | M114: 14.7 | N114: 15.70909091 | O114: 16.66363636 | P114: 17.56363636 | Q114: 18.40909091 | R114: 19.2 | S114: 19.93636364 | T114: 20.61818182 | U114: 21.24545455 | V114: 21.81818182 | W114: 22.33636364 | X114: 22.8 | Y114: 23.20909091 | Z114: 23.56363636 | AA114: 23.86363636 | AB114: 24.10909091 | AC114: 24.3 | AD114: 24.43636364 | AE114: 24.51818182 | AF114: 24.54545455 | AG114: 24.51818182 | AH114: 24.43636364 | AI114: 24.3 | AJ114: 24.10909091 | AK114: 23.86363636 | AL114: 23.56363636 | AM114: 23.20909091 | AN114: 22.8 | AO114: 22.33636364 | AP114: 21.81818182 | AQ114: 21.24545455 | AR114: 20.61818182 | AS114: 19.93636364 | AT114: 19.2 | AU114: 18.40909091 | AV114: 17.56363636 | AW114: 16.66363636 | AX114: 15.70909091 | AY114: 14.7 | AZ114: 13.63636364 | BA114: 12.51818182 | BB114: 11.34545455 | BC114: 10.11818182 | BD114: 8.836363636 | BE114: 7.5 | BF114: 6.109090909 | BG114: 4.663636364 | BH114: 3.163636364 | BI114: 1.609090909 | BJ114: 0

Sheet 2xBC (hidden)
A1: We extend the model again, this time adding a BUDGET CONSTRAINT. | AA1: A | AE1: x | AG1: b | AI1: A-1 | AM1: A-1b = solution
AA2: =-2*_a1 -> -6 | AB2: 0 | AC2: -1 | AE2: x0 | AG2: =-a0 -> -18 | AI2: =MINVERSE(AA2:AC4) -> -0.0873015873 | AJ2: 0.0873015873 | AK2: 0.4761904762 | AM2: =MMULT(AI2:AK4,AG2:AG4) -> 1.095238095
A3: Before, the consumer could buy any amount of x, from zero to infinity. Now, they have stay within their budget. | AA3: 0 | AB3: =-2*_a1/(1+dr) -> -5.454545455 | AC3: =-1/(1+ir) -> -1 | AE3: x1 | AF3: = | AG3: =-a0/(1+dr) -> -16.36363636 | AI3: 0.0873015873 | AJ3: -0.0873015873 | AK3: 0.5238095238 | AM3: 0.9047619048
A4: We allow saving (consuming less in the present, then more in the future) or borrowing (the reverse), but the overall, lifetime budget must be balanced. | AA4: 1 | AB4: =1/(1+ir) -> 1 | AC4: 0 | AE4: l | AG4: =m+(1+mgr)*m/(1+ir) -> 2 | AI4: -0.4761904762 | AJ4: -0.5238095238 | AK4: -2.857142857 | AM4: 11.42857143
A6: Utility is the same as before:
E7: a0 | F7: 18
E8: a1 | F8: 3
A10: The price of x is $1/unit in both time periods (no inflation) and the consumer gets $1 of income each year.
A11: That means that the 3,3 optimal solution that we got before is not feasible -- it would cost $6 and the consumer only has $2 of lifetime income.
A12: Before you say, "Fine. The answer is 1,1," think about it a little. Remember that you get more utility from present consumption.
A13: Wouldn't it make sense to buy a little more in the present than in the future? Let's find out.
A15: The constrained optimization problem looks like this:
G16: interest rate (ir) | H16: 0 | I16: This is the interest rate which we will use to present value future income.
D17: discount rate (dr) | E17: 0.1 | G17: m growth rate (mgr) | H17: 0 | I17: This allows us to increase income in future years if we wish.
G18: yearly m | H18: 1
C19: Time | D19: x | E19: U | H19: constraint
C20: 0 | D20: 3 | E20: =(a0*D20-_a1*D20^2)/((1+dr)^C20) -> 27 | H20: =m-D20 -> -2
C21: 1 | D21: 3 | E21: =(a0*D21-_a1*D21^2)/((1+dr)^C21) -> 24.54545455 | H21: =(1+mgr)*m/(1+ir)^C21-D21/(1+ir)^C21 -> -2
D22: sum U | E22: =E20+E21 -> 51.54545455 | G22: sum constraint | H22: =H20+H21 -> -4
A24: As noted above, the 3,3 unconstrained solution is not allowed because cell H22 is negative. Click to see the formula.
A25: Thus, this consumer cannot afford the 3,3 combination and must buy less x to stay within the budget.
A26: This problem can be solved with math, but run Solver to find the optimal solution.
A28: When you call Solver, notice how a constraint has been added -- Solver must find the values of x in cells E20 and E21 that maximize U (E22), while meeting the constraint in H22.
A30: As expected, the optimal solution has the consumer buying a little more in the present.
A31: Change the m growth rate (cell H17) to 0.1. Now the consumer can afford a little more x (look at H22), but how will the extra income be allocated? Run Solver to find out.
A33: By the way, you might notice that cell H22 displays something like
A34: 4.809528042e-08
A35: This is simply scientific notation. It is read, "4.8095 times 10 to the minus 8" and is the same as 0.000000048095 -- a really small number, which means the constraint is basically zero and has been met.
A36: Excel defaults to scientific notation if the number has so many zeroes that the column is not wide enough to display the number.
A37: You can change the number formatting in the Number group of the Home tab.
A39: We can graph the solution by showing the highest level curve we can reach, just tangent to the budget constraint -- exactly like you learned in Intermediate Micro.
A40: The solution is at the red diamond in the chart below.
A42: We can extend the model
A43: again, adding another | L43: step | M43: 0.36
A44: good. | K44: Time | L44: x | M44: U
K45: 0 | L45: =AM2 -> 1.095238095 | M45: =($F$7*L45-$F$8*L45^2)/((1+dr)^K45) -> 16.11564626
K46: 1 | L46: =AM3 -> 0.9047619048 | M46: =($F$7*L46-$F$8*L46^2)/((1+dr)^K46) -> 12.57266543
L47: U bar | M47: =SUM(M45:M46) -> 28.68831169 | N47: <--this is the level curve being graphed | R47: This is the diagonal line (budget constraint)
L48: x0 | M48: x1 | R48: x0 | S48: x1
L49: 0.25 | M49: =(-a0/(1+dr)-SQRT((a0/(1+dr))^2-4*(-_a1/(1+dr))*(-$M$47+a0*L49-_a1*L49^2)))/(2*(-_a1/(1+dr))) -> 3.249404052 | R49: 0 | S49: =(1+mgr)*m+m*(1+ir) -> 2
L50: =L49+$M$43 -> 0.61 | M50: 4.44832399 | R50: =R49+$M$43 -> 0.36 | S50: =(1+mgr)*m+(m-R50)*(1+ir) -> 1.64
L51: 0.97 | M51: 4.961622385 | R51: =R50+$M$43 -> 0.72 | S51: 1.28
L52: 1.33 | M52: 5.3050298 | R52: =L45 -> 1.095238095 | S52: 0.9047619048
L53: 1.69 | M53: 5.548184134 | R53: =R52+$M$43 -> 1.455238095 | S53: 0.5447619048
L54: 2.05 | M54: 5.718124791 | R54: 1.815238095 | S54: 0.1847619048
L55: 2.41 | M55: 5.828081042 | R55: 2.175238095 | S55: -0.1752380952
L56: 2.77 | M56: 5.884919822
L57: 3.13 | M57: 5.891774953
L58: 3.49 | M58: 5.849007262
L59: 3.85 | M59: 5.754306152
L60: 4.21 | M60: 5.602007375
L61: 4.57 | M61: 5.381084287
L62: 4.93 | M62: 5.069676878
L63: 5.29 | M63: 4.616305163
L64: 5.65 | M64: 3.810063196
L65: =L49 -> 0.25 | M65: =(-a0/(1+dr)+SQRT((a0/(1+dr))^2-4*(-_a1/(1+dr))*(-$M$47+a0*L65-_a1*L65^2)))/(2*(-_a1/(1+dr))) -> 2.750595948
L66: =L50 -> 0.61 | M66: 1.55167601
L67: 0.97 | M67: 1.038377615
L68: 1.33 | M68: 0.6949701996
L69: 1.69 | M69: 0.451815866
L70: 2.05 | M70: 0.2818752087
L71: 2.41 | M71: 0.1719189579
L72: 2.77 | M72: 0.1150801777
L73: 3.13 | M73: 0.1082250466
L74: 3.49 | M74: 0.1509927376
L75: 3.85 | M75: 0.2456938476
L76: 4.21 | M76: 0.3979926247
L77: 4.57 | M77: 0.6189157132
L78: 4.93 | M78: 0.9303231216
L79: 5.29 | M79: 1.383694837
L80: 5.65 | M80: 2.189936804

Sheet 2xy (hidden)
A1: Another extension: we add another good, y.
A3: The functional form of utility is still quadratic (it has a squared term), but now we have x and y in the present and future time periods.
E4: a0 | F4: 18
E5: a1 | F5: 3
E6: b0 | F6: 8
E7: b1 | F7: 1
A9: The price of x and y are both $1/unit in both time periods and the consumer gets $2 of income each year (the income growth and interest rate are zero in cells H12 and H13).
A11: The constrained optimization problem looks like this:
G12: interest rate (ir) | H12: 0
D13: discount rate (dr) | E13: 0.1 | G13: m growth rate (mgr) | H13: 0
G14: yearly m | H14: 2
B15: Time | C15: x | D15: y | E15: U | H15: constraint
B16: 0 | C16: 1 | D16: 1 | E16: =(a0*C16-_a1*C16^2+b0*D16-_b1*D16^2)/((1+dr)^B16) -> 22 | H16: =m-C16-D16 -> 0
B17: 1 | C17: 1 | D17: 1 | E17: =(a0*C17-_a1*C17^2+b0*D17-_b1*D17^2)/((1+dr)^B17) -> 20 | H17: =((1+mgr)^B17)*m/(1+ir)^B17-C17/(1+ir)^B17-D17/(1+ir)^B17 -> 0
D18: sum U | E18: =E16+E17 -> 42 | G18: sum constraint | H18: =H16+H17 -> 0
A20: When you call Solver to find the optimal solution, notice how the changing cells are now C16 and C17 for x and D16 and D17 for y.
A21: The consumer has to choose four variables, making sure the constraint is satisfied and utility is maximized.
A23: We don't have an easy way to display this result in a graph because we need four dimensions, one for each choice variable, but that's OK, we know we are maximizing utility subject to a constraint.
A25: It should be pretty clear that we can keep extending the model by adding other goods, but we're going to do something different -- and critical for the rational addiction model.

Sheet 5xyS (hidden)
A1: We have arrived at the key idea in the rational addiction model: utility depends on x and y and the stock of x. | AA1: A (matrix of coefficients from first order conditions) | AM1: x (vector var) | AO1: b (vector constants) | AQ1: A-1 | BC1: A-1b = solution
A2: This makes the problem quite complicated, but we can use Solver and Excel to do the heavy lifting. | AA2: =-2*_a1-2*_c1/((1+dr)^1)-2*_c1*(1-dep)^2/((1+dr)^2)-2*_c1*(1-dep)^4/((1+dr)^3)-2*_c1*(1-dep)^6/((1+dr)^4) -> -17.07594772 | AB2: =-2*_c1*(1-dep)/((1+dr)^2)-2*_c1*(1-dep)^3/((1+dr)^3)-2*_c1*(1-dep)^5/((1+dr)^4) -> -7.831141145 | AC2: =-2*_c1*(1-dep)^2/((1+dr)^3)-2*_c1*(1-dep)^4/((1+dr)^4) -> -4.937521344 | AD2: =-2*_c1*(1-dep)^3/((1+dr)^4) -> -2.342394645 | AE2: 0 | AF2: 0 | AG2: 0 | AH2: 0 | AI2: 0 | AJ2: 0 | AK2: -1 | AM2: x0 | AO2: =-(a0+(-2*_c1*(1-dep)*B29+c0)/((1+dr)^1)+(-2*_c1*(1-dep)^3*B29+c0*(1-dep))/((1+dr)^2)+(-2*_c1*(1-dep)^5*B29+c0*(1-dep)^2)/((1+dr)^3)+(-2*_c1*(1-dep)^7*B29+c0*(1-dep)^3)/((1+dr)^4)) -> -136.3150058 | AQ2: =MINVERSE(AA2:AK12) -> -0.0823879132 | AR2: 0.03962090523 | AS2: 0.01859187174 | AT2: 0.008629065201 | AU2: 0.00376655388 | AV2: 0.001929455235 | AW2: 0.002122400759 | AX2: 0.002334640835 | AY2: 0.002568104918 | AZ2: 0.00282491541 | BA2: 0.01543564188 | BC2: =MMULT(AQ2:BA12,AO2:AO12) -> 5.602237271
AA3: =-2*_c1*(1-dep)/((1+dr)^2)-2*_c1*(1-dep)^3/((1+dr)^3)-2*_c1*(1-dep)^5/((1+dr)^4) -> -7.831141145 | AB3: =-2*_a1/((1+dr)^1)-2*_c1/((1+dr)^2)-2*_c1*(1-dep)^2/((1+dr)^3)-2*_c1*(1-dep)^4/((1+dr)^4) -> -13.69785192 | AC3: =-2*_c1*(1-dep)/((1+dr)^3)-2*_c1*(1-dep)^3/((1+dr)^4) -> -5.197390889 | AD3: =-2*_c1*(1-dep)^2/((1+dr)^4) -> -2.465678574 | AE3: 0 | AF3: 0 | AG3: 0 | AH3: 0 | AI3: 0 | AJ3: 0 | AK3: =-1/(1+ir) -> -1 | AM3: x1 | AO3: =-(a0/((1+dr)^1)+(-2*_c1*(1-dep)^2*B29+c0)/((1+dr)^2)+(-2*_c1*(1-dep)^4*B29+c0*(1-dep))/((1+dr)^3)+(-2*_c1*(1-dep)^6*B29+c0*(1-dep)^2)/((1+dr)^4)) -> -102.6282358 | AQ3: 0.03962090523 | AR3: -0.1098520766 | AS3: 0.03418862317 | AT3: 0.01519569811 | AU3: 0.005050844299 | AV3: 0.002587345963 | AW3: 0.002846080559 | AX3: 0.003130688615 | AY3: 0.003443757477 | AZ3: 0.003788133224 | BA3: 0.0206987677 | BC3: 2.973839228
A4: The way it works is that you get utility from current consumption of x and y AND your built up, past consumption of x, which is the stock of x. | AA4: =-2*_c1*(1-dep)^2/((1+dr)^3)-2*_c1*(1-dep)^4/((1+dr)^4) -> -4.937521344 | AB4: =-2*_c1*(1-dep)^1/((1+dr)^3)-2*_c1*(1-dep)^3/((1+dr)^4) -> -5.197390889 | AC4: =-2*_a1/((1+dr)^2)-2*_c1/((1+dr)^3)-2*_c1*(1-dep)^2/((1+dr)^4) -> -10.42961546 | AD4: =-2*_c1*(1-dep)^1/((1+dr)^4) -> -2.59545113 | AE4: 0 | AF4: 0 | AG4: 0 | AH4: 0 | AI4: 0 | AJ4: 0 | AK4: =-1/(1+ir)^2 -> -1 | AM4: x2 | AO4: =-(a0/((1+dr)^2)+(-2*_c1*(1-dep)^3*B29+c0)/((1+dr)^3)+(-2*_c1*(1-dep)^5*B29+c0*(1-dep))/((1+dr)^4)) -> -70.8831364 | AQ4: 0.01859187174 | AR4: 0.03418862317 | AS4: -0.1261175507 | AT4: 0.03307490783 | AU4: 0.009754847338 | AV4: 0.00499701899 | AW4: 0.005496720889 | AX4: 0.006046392978 | AY4: 0.006651032276 | AZ4: 0.007316135504 | BA4: 0.03997615192 | BC4: 1.825453126
A5: So, say you play the piano and get better at it and it is more enjoyable the next time you play -- you are getting utility not just from playing now, but also from your previous practice. | AA5: =-2*_c1*(1-dep)^3/((1+dr)^4) -> -2.342394645 | AB5: =-2*_c1*(1-dep)^2/((1+dr)^4) -> -2.465678574 | AC5: =-2*_c1*(1-dep)^1/((1+dr)^4) -> -2.59545113 | AD5: =-2*_a1/((1+dr)^3)-2*_c1/((1+dr)^4) -> -7.239942627 | AE5: 0 | AF5: 0 | AG5: 0 | AH5: 0 | AI5: 0 | AJ5: 0 | AK5: =-1/(1+ir)^3 -> -1 | AM5: x3 | AO5: =-(a0/((1+dr)^3)+(-2*_c1*(1-dep)^4*B29+c0)/((1+dr)^4)) -> -40.84420463 | AQ5: 0.008629065201 | AR5: 0.01519569811 | AS5: 0.03307490783 | AT5: -0.1457601858 | AU5: 0.02152942153 | AV5: 0.01102866344 | AW5: 0.01213152979 | AX5: 0.01334468276 | AY5: 0.01467915104 | AZ5: 0.01614706614 | BA5: 0.08822930753 | BC5: 1.490832046
A6: We model this with a new variable, S, that keeps track of your past consumption of x and with a utility function that includes a quadratic component for the stock. | AA6: 0 | AB6: 0 | AC6: 0 | AD6: 0 | AE6: =-2*_a1/((1+dr)^4) -> -4.098080732 | AF6: 0 | AG6: 0 | AH6: 0 | AI6: 0 | AJ6: 0 | AK6: =-1/(1+ir)^4 -> -1 | AM6: x4 | AO6: =-a0/((1+dr)^4) -> -12.2942422 | AQ6: 0.00376655388 | AR6: 0.005050844299 | AS6: 0.009754847338 | AT6: 0.02152942153 | AU6: -0.1946114612 | AV6: 0.02530831505 | AW6: 0.02783914655 | AX6: 0.03062306121 | AY6: 0.03368536733 | AZ6: 0.03705390406 | BA6: 0.2024665204 | BC6: 1.814662316
AA7: 0 | AB7: 0 | AC7: 0 | AD7: 0 | AE7: 0 | AF7: =-2*_b1 -> -8 | AG7: 0 | AH7: 0 | AI7: 0 | AJ7: 0 | AK7: -1 | AM7: y0 | AN7: = | AO7: =-b0 -> -8 | AQ7: 0.001929455235 | AR7: 0.002587345963 | AS7: 0.00499701899 | AT7: 0.01102866344 | AU7: 0.02530831505 | AV7: -0.1120355602 | AW7: 0.01426088376 | AX7: 0.01568697214 | AY7: 0.01725566935 | AZ7: 0.01898123629 | BA7: 0.1037155183 | BC7: 0.3927988097
A8: But it's not as simple as just adding up past consumption. We will also include a depreciation parameter that reflects how fast we use up the stock of previous x. | AA8: 0 | AB8: 0 | AC8: 0 | AD8: 0 | AE8: 0 | AF8: 0 | AG8: =-2*_b1/((1+dr)^1) -> -7.272727273 | AH8: 0 | AI8: 0 | AJ8: 0 | AK8: =-1/(1+ir) -> -1 | AM8: y1 | AO8: =-b0/((1+dr)^1) -> -7.272727273 | AQ8: 0.002122400759 | AR8: 0.002846080559 | AS8: 0.005496720889 | AT8: 0.01213152979 | AU8: 0.02783914655 | AV8: 0.01426088376 | AW8: -0.1218130279 | AX8: 0.01725566935 | AY8: 0.01898123629 | AZ8: 0.02087935992 | BA8: 0.1140870701 | BC8: 0.3320786907
A9: The depreciation rate can be anywhere from 0 to 100% -- zero means no depreciation and 100% means you use up all of the stock. | AA9: 0 | AB9: 0 | AC9: 0 | AD9: 0 | AE9: 0 | AF9: 0 | AG9: 0 | AH9: =-2*_b1/((1+dr)^2) -> -6.611570248 | AI9: 0 | AJ9: 0 | AK9: =-1/(1+ir)^2 -> -1 | AM9: y2 | AO9: =-b0/((1+dr)^2) -> -6.611570248 | AQ9: 0.002334640835 | AR9: 0.003130688615 | AS9: 0.006046392978 | AT9: 0.01334468276 | AU9: 0.03062306121 | AV9: 0.01568697214 | AW9: 0.01725566935 | AX9: -0.1322687637 | AY9: 0.02087935992 | AZ9: 0.02296729591 | BA9: 0.1254957771 | BC9: 0.2652865597
A10: It's a complicated process, but it does go step-by-step. You have to read carefully and slowly. Walk through each step in the model below and you will understand it. | AA10: 0 | AB10: 0 | AC10: 0 | AD10: 0 | AE10: 0 | AF10: 0 | AG10: 0 | AH10: 0 | AI10: =-2*_b1/((1+dr)^3) -> -6.010518407 | AJ10: 0 | AK10: =-1/(1+ir)^3 -> -1 | AM10: y3 | AO10: =-b0/((1+dr)^3) -> -6.010518407 | AQ10: 0.002568104918 | AR10: 0.003443757477 | AS10: 0.006651032276 | AT10: 0.01467915104 | AU10: 0.03368536733 | AV10: 0.01725566935 | AW10: 0.01898123629 | AX10: 0.02087935992 | AY10: -0.1434077041 | AZ10: 0.0252640255 | BA10: 0.1380453548 | BC10: 0.1918152157
AA11: 0 | AB11: 0 | AC11: 0 | AD11: 0 | AE11: 0 | AF11: 0 | AG11: 0 | AH11: 0 | AI11: 0 | AJ11: =-2*_b1/((1+dr)^4) -> -5.464107643 | AK11: =-1/(1+ir)^4 -> -1 | AM11: y4 | AO11: =-b0/((1+dr)^4) -> -5.464107643 | AQ11: 0.00282491541 | AR11: 0.003788133224 | AS11: 0.007316135504 | AT11: 0.01614706614 | AU11: 0.03705390406 | AV11: 0.01898123629 | AW11: 0.02087935992 | AX11: 0.02296729591 | AY11: 0.0252640255 | AZ11: -0.155222072 | BA11: 0.1518498903 | BC11: 0.1109967373
A12: The model for five time periods is set up below. It has the same framework as before, with two additions: another good, the stock of x, S, in the utility function and the depreciation rate in cell D21. | AA12: 1 | AB12: =1/(1+ir) -> 1 | AC12: =1/(1+ir)^2 -> 1 | AD12: =1/(1+ir)^3 -> 1 | AE12: =1/(1+ir)^4 -> 1 | AF12: 1 | AG12: =1/(1+ir) -> 1 | AH12: =1/(1+ir)^2 -> 1 | AI12: =1/(1+ir)^3 -> 1 | AJ12: =1/(1+ir)^4 -> 1 | AK12: 0 | AM12: l | AO12: =m+((1+mgr)^1)*m/((1+ir)^1)+((1+mgr)^2)*m/((1+ir)^2)+((1+mgr)^3)*m/((1+ir)^3)+((1+mgr)^4)*m/((1+ir)^4) -> 15 | AQ12: -0.01543564188 | AR12: -0.0206987677 | AS12: -0.03997615192 | AT12: -0.08822930753 | AU12: -0.2024665204 | AV12: -0.1037155183 | AW12: -0.1140870701 | AX12: -0.1254957771 | AY12: -0.1380453548 | AZ12: -0.1518498903 | BA12: -0.8297241461 | BC12: 4.857609522
A13: Here are the utility function parameters:
D14: a0 | E14: 18 | AA14: Below is the analytical optimal solution given parameter values: | AJ14: Check analytical and Solver (after running Solver, of course):
D15: a1 | E15: 3 | F15: a0 and a1 are parameters for x in the quadratic utility function | AA15: Time | AB15: S of x | AC15: x | AD15: y | AE15: U | AF15: depS | AG15: DS | AH15: constraint | AJ15: Time | AK15: S of x | AL15: x | AM15: y | AN15: U
D16: b0 | E16: 8 | AA16: 0 | AB16: =B29 -> 0 | AC16: =BC2 -> 5.602237271 | AD16: =BC7 -> 0.3927988097 | AE16: =(a0*AC16-_a1*AC16^2+b0*AD16-_b1*AD16^2+c0*AB16-_c1*AB16^2)/((1+dr)^AA16) -> 9.210310413 | AF16: =$D$22*AB16 -> 0 | AG16: =AC16-AF16 -> 5.602237271 | AH16: =((1+mgr)^AA16)*$H$22/((1+dr)^AA16)-AC16-AD16 -> -2.995036081 | AJ16: 0 | AL16: =AC16-C29 -> 4.102237271 | AM16: -0.6072011903 | AN16: -15.03968959
D17: b1 | E17: 4 | F17: b0 and b1 are parameters for y in the quadratic utility function | AA17: 1 | AB17: =AB16+AG16 -> 5.602237271 | AC17: =BC3 -> 2.973839228 | AD17: =BC8 -> 0.3320786907 | AE17: =(a0*AC17-_a1*AC17^2+b0*AD17-_b1*AD17^2+c0*AB17-_c1*AB17^2)/((1+dr)^AA17) -> 173.2116703 | AF17: =$D$22*AB17 -> 0.2801118636 | AG17: =AC17-AF17 -> 2.693727364 | AH17: =((1+mgr)^AA17)*$H$22/((1+dr)^AA17)-AC17-AD17 -> -0.5786451909 | AJ17: 1 | AK17: =AB17-B30 -> 4.102237271 | AL17: =AC17-C30 -> 1.473839228 | AM17: =AD17-D30 -> -0.6679213093 | AN17: =AE17-E30 -> 100.7116703
D18: c0 | E18: 40 | AA18: 2 | AB18: =AB17+AG17 -> 8.295964635 | AC18: =BC4 -> 1.825453126 | AD18: =BC9 -> 0.2652865597 | AE18: =(a0*AC18-_a1*AC18^2+b0*AD18-_b1*AD18^2+c0*AB18-_c1*AB18^2)/((1+dr)^AA18) -> 180.9046533 | AF18: =$D$22*AB18 -> 0.4147982318 | AG18: =AC18-AF18 -> 1.410654894 | AH18: =((1+mgr)^AA18)*$H$22/((1+dr)^AA18)-AC18-AD18 -> 0.3885991573 | AJ18: 2 | AK18: 5.370964635 | AL18: 0.325453126 | AM18: -0.7347134403 | AN18: 78.31064505
D19: c1 | E19: 2 | F19: c0 and c1 are parameters for S (the stock of x) in the quadratic utility function | AA19: 3 | AB19: =AB18+AG18 -> 9.706619529 | AC19: =BC5 -> 1.490832046 | AD19: =BC10 -> 0.1918152157 | AE19: =(a0*AC19-_a1*AC19^2+b0*AD19-_b1*AD19^2+c0*AB19-_c1*AB19^2)/((1+dr)^AA19) -> 166.3279049 | AF19: =$D$22*AB19 -> 0.4853309765 | AG19: =AC19-AF19 -> 1.005501069 | AH19: =((1+mgr)^AA19)*$H$22/((1+dr)^AA19)-AC19-AD19 -> 0.571297141 | AJ19: 3 | AK19: 5.427869529 | AL19: -0.00916795404 | AM19: -0.8081847843 | AN19: 47.03068715
G20: interest rate (ir) | H20: 0 | AA20: 4 | AB20: =AB19+AG19 -> 10.7121206 | AC20: =BC6 -> 1.814662316 | AD20: =BC11 -> 0.1109967373 | AE20: =(a0*AC20-_a1*AC20^2+b0*AD20-_b1*AD20^2+c0*AB20-_c1*AB20^2)/((1+dr)^AA20) -> 152.0452053 | AF20: =$D$22*AB20 -> 0.5356060299 | AG20: =AC20-AF20 -> 1.279056286 | AH20: =((1+mgr)^AA20)*$H$22/((1+dr)^AA20)-AC20-AD20 -> 0.1233813124 | AJ20: 4 | AK20: 5.147308099 | AL20: 0.3146623164 | AM20: -0.8890032627 | AN20: 25.75040048
C21: discount rate (dr) | D21: 0.1 | G21: m growth rate (mgr) | H21: 0 | AE21: =SUM(AE16:AE20) -> 681.6997442 | AH21: =SUM(AH16:AH20) -> -2.490403661 | AN21: 236.7637134
C22: depreciation rate (dep) | D22: 0.05 | G22: yearly m | H22: 3
A23: In the table below, we start with zero for the stock of x, then the chosen values of x and y (and zero S) determine U.
A24: There is zero depreciation in cell F29 because there was no stock to wear out in time=0, so "delta S", the change in the stock of S is simply 1.5, the amount of x consumed in time=0.
A25: The constraint is 0.5 because we have m=3 and we only used up 2.5 (1.5 for x and 1 for y).
A26: In time=1, the stock of x is 1.5 (cell B30) because that was our "delta S" value in cell G29. The process then proceeds as before: x, y, S --> U, then DS = S of x - depS.
A27: Walk yourself through row 30. Why is U 72.5? Why is depS 0.075? Why is DS 1.425?
A28: Time | B28: S of x | C28: x | D28: y | E28: U | F28: depS | G28: DS | H28: constraint | I28: <-- Notice the little red triangles -- they are comments. Put your cursor over the cell to read the comment.
A29: 0 | B29: 0 | C29: 1.5 | D29: 1 | E29: =(a0*C29-_a1*C29^2+b0*D29-_b1*D29^2+c0*B29-_c1*B29^2)/((1+dr)^A29) -> 24.25 | F29: =dep*B29 -> 0 | G29: =C29-F29 -> 1.5 | H29: =m-C29-D29 -> 0.5 | I29: Click on the cells to the see the formulas -- this is a HUGE advantage of a spreadsheet.
A30: 1 | B30: =B29+G29 -> 1.5 | C30: 1.5 | D30: 1 | E30: =(a0*C30-_a1*C30^2+b0*D30-_b1*D30^2+c0*B30-_c1*B30^2)/((1+dr)^A30) -> 72.5 | F30: =dep*B30 -> 0.075 | G30: =C30-F30 -> 1.425 | H30: =((1+mgr)^A30)*m/((1+ir)^A30)-C30/((1+ir)^A30)-D30/((1+ir)^A30) -> 0.5 | I30: For complicated ones, use the trace arrows. Click on cell E30, then in the Formulas tab, click the Trace Precedents and Trace Dependents buttons.
A31: 2 | B31: =B30+G30 -> 2.925 | C31: 1.5 | D31: 1 | E31: =(a0*C31-_a1*C31^2+b0*D31-_b1*D31^2+c0*B31-_c1*B31^2)/((1+dr)^A31) -> 102.5940083 | F31: =dep*B31 -> 0.14625 | G31: =C31-F31 -> 1.35375 | H31: =((1+mgr)^A31)*m/((1+ir)^A31)-C31/((1+ir)^A31)-D31/((1+ir)^A31) -> 0.5 | I31: Click Remove Arrows to, um, remove the arrows.
A32: 3 | B32: =B31+G31 -> 4.27875 | C32: 1.5 | D32: 1 | E32: =(a0*C32-_a1*C32^2+b0*D32-_b1*D32^2+c0*B32-_c1*B32^2)/((1+dr)^A32) -> 119.2972178 | F32: =dep*B32 -> 0.2139375 | G32: =C32-F32 -> 1.2860625 | H32: =((1+mgr)^A32)*m/((1+ir)^A32)-C32/((1+ir)^A32)-D32/((1+ir)^A32) -> 0.5
A33: 4 | B33: =B32+G32 -> 5.5648125 | C33: 1.5 | D33: 1 | E33: =(a0*C33-_a1*C33^2+b0*D33-_b1*D33^2+c0*B33-_c1*B33^2)/((1+dr)^A33) -> 126.2948048 | F33: =dep*B33 -> 0.278240625 | G33: =C33-F33 -> 1.221759375 | H33: =((1+mgr)^A33)*m/((1+ir)^A33)-C33/((1+ir)^A33)-D33/((1+ir)^A33) -> 0.5
D34: sum U | E34: =SUM(E29:E33) -> 444.9360308 | G34: sum constraint | H34: =SUM(H29:H33) -> 2.5
A36: The consumer's task is tough one: choose x and y for all five time periods that maximize the sum of discounted (lifetime) utility.
I37: This chart shows the path of the variables over time:
A38: The x=1.5 and y=1 solution is obviously wrong because the constraint isn't zero.
A39: Change C29 to 2 and fill down so all five values of x are 2.
A40: The constraint is now met, but is this really the best answer? The max U?
A42: Once again, we can call Excel's Solver and it will give us the optimal solution.
A44: Wow -- that is a pretty complicated optimal path!
A45: For S of x, it's rising, but flattening -- the consumer is building an addiction to x!
A47: What would happen if we had more time periods?
A48: Let's find out!

Sheet 50xyS (hidden)
A1: This is the full-blown, complete rational addiction model. We simulate a 50 period case to see how the S of x optimal path behaves under different situations.
I2: This chart is LIVE (it updates if the cells in columns B, C, and D change). | R2: This chart is DEAD (it is a picture). Change a parameter and run Solver to determine its effect by comparing the LIVE chart to this one.
A3: Instructions and explanations for this sheet are below the charts.
D5: a0 | E5: 18
D6: a1 | E6: 3
D7: b0 | E7: 8
D8: b1 | E8: 4
D9: c0 | E9: 40
D10: c1 | E10: 2
G11: interest rate (ir) | H11: 0
C12: discount rate (dr) | D12: 0.1 | G12: m growth rate (mgr) | H12: 0
C13: depreciation rate (dep) | D13: 0.05 | G13: yearly m | H13: 3
D15: sum U | E15: =SUM(E17:E66) -> 2099.917123 | G15: sum constraint | H15: =SUM(H17:H66) -> -6.610057568e-08
A16: Time | B16: S | C16: x | D16: y | E16: U | F16: depS | G16: DS | H16: constraint
A17: 0 | B17: 0 | C17: 5.595335303 | D17: 1.041655867 | E17: =(a0*C17-_a1*C17^2+b0*D17-_b1*D17^2+c0*B17-_c1*B17^2)/((1+dr)^A17) -> 10.78576316 | F17: =$D$13*B17 -> 0 | G17: =C17-F17 -> 5.595335303 | H17: =m-C17-D17 -> -3.636991169
A18: 1 | B18: =B17+G17 -> 5.595335303 | C18: 2.910872683 | D18: 1.046010094 | E18: 174.6959628 | F18: 0.2797667651 | G18: =C18-F18 -> 2.631105918 | H18: =((1+mgr)^A18)*m/((1+ir)^A18)-C18/((1+ir)^A18)-D18/((1+ir)^A18) -> -0.9568827771 | J18: Solver has already been run and the chart above shows the optimal path.
A19: 2 | B19: =B18+G18 -> 8.22644122 | C19: 1.648931164 | D19: 1.050676115 | E19: 181.1756572 | F19: 0.411322061 | G19: =C19-F19 -> 1.237609103 | H19: 0.3003927217 | K19: You can safely ignore the end--weird stuff happens as the terminal period approaches and most models assume infinite lives to avoid these complications.
A20: 3 | B20: =B19+G19 -> 9.464050323 | C20: 1.055369808 | D20: 1.05567833 | E20: 164.5892981 | F20: 0.4732025161 | G20: =C20-F20 -> 0.5821672914 | H20: 0.8889518628 | J20: Addiction
A21: 4 | B21: =B20+G20 -> 10.04621761 | C21: 0.7763632397 | D21: 1.061253489 | E21: 147.6313357 | F21: 0.5023108807 | G21: =C21-F21 -> 0.274052359 | H21: 1.162383272 | K21: The red series, optimal S, clearly shows a build up and then a persistently high accumulation that is the hallmark of addiction.
A22: 5 | B22: =B21+G21 -> 10.32026997 | C22: 0.6452793003 | D22: 1.067372756 | E22: 132.9656874 | F22: 0.5160134987 | G22: =C22-F22 -> 0.1292658016 | H22: 1.287347944 | K22: The consumer is using this high stock of x to gain a lot of utility.
A23: 6 | B23: 10.44953577 | C23: 0.5836594952 | D23: 1.074314424 | E23: 120.2654836 | F23: 0.5224767887 | G23: 0.06118270649 | H23: 1.342026081 | J23: Steady state
A24: 7 | B24: 10.51071848 | C24: 0.5547892116 | D24: 1.081390686 | E24: 109.0536272 | F24: 0.5255359241 | G24: 0.02925328757 | H24: 1.363820103 | K24: The flat part is a key characteristic of the optimal solution.
A25: 8 | B25: 10.53997177 | C25: 0.5412327022 | D25: 1.089922284 | E25: 99.01521507 | F25: 0.5269985884 | G25: 0.01423411378 | H25: 1.368845013 | K25: Notice that delta S, in column G, gets close to zero after a few time periods and stays at DS=0.
A26: 9 | B26: 10.55420588 | C26: 0.5347107391 | D26: 1.098694537 | E26: 89.95695563 | F26: 0.5277102941 | G26: 0.007000444995 | H26: 1.366594724 | K26: This is called the steady-state solution, analogous to an equilibrium point, but it is a path.
A27: 10 | B27: 10.56120633 | C27: 0.5321479074 | D27: 1.108414418 | E27: 81.75530207 | F27: 0.5280603164 | G27: 0.004087591026 | H27: 1.359437674 | K27: Look closely at x and depS starting at row 10. They are almost equal. That is why delta S is almost zero. | AH27: This is shock of S=0 at time=10.
A28: 11 | B28: 10.56529392 | C28: 0.5310535856 | D28: 1.119661935 | E28: 74.31049701 | F28: 0.5282646959 | G28: 0.002788889618 | H28: 1.349284479 | K28: This balance in additions and subtractions from the stock is indicative of a stable position that we call the steady state.
A29: 12 | B29: 10.56808281 | C29: 0.5303030412 | D29: 1.131457253 | E29: 67.54566463 | F29: 0.5284041404 | G29: 0.001898900766 | H29: 1.338239706 | J29: Shock
A30: 13 | B30: 10.56998171 | C30: 0.5300051648 | D30: 1.144657524 | E30: 61.39839598 | F30: 0.5284990855 | G30: 0.001506079314 | H30: 1.325337312 | K30: Suppose there is a negative shock, for example, an alcoholic gets arrested for DUI, how can we model that?
A31: 14 | B31: 10.57148779 | C31: 0.530249338 | D31: 1.158663378 | E31: 55.81229626 | F31: 0.5285743894 | G31: 0.001674948534 | H31: 1.311087284 | K31: One way is to say that S is suddenly changed. It is not as valuable.
A32: 15 | B32: 10.57316274 | C32: 0.530633423 | D32: 1.175199154 | E32: 50.73360919 | F32: 0.5286581368 | G32: 0.001975286135 | H32: 1.294167423 | K32: Change cell B27 to 0 (zero). What will the consumer do?
A33: 16 | B33: 10.57513802 | C33: 0.5308046169 | D33: 1.191968638 | E33: 46.11566766 | F33: 0.5287569012 | G33: 0.0020477157 | H33: 1.277226745 | K33: We have to re-optimize for the remaining 40 years. Change cells E15 and H15 so they sum from 27:66 (change 17 to 27).
A34: 17 | B34: 10.57718574 | C34: 0.530861817 | D34: 1.211796796 | E34: 41.9162325 | F34: 0.5288592869 | G34: 0.002002530067 | H34: 1.257341387 | K34: Call Solver and adjust the changing cells from 17 to 27 --> $C$27:$D$66
A35: 18 | B35: 10.57918827 | C35: 0.5311294557 | D35: 1.232802214 | E35: 38.09882723 | F35: 0.5289594134 | G35: 0.002170042251 | H35: 1.236068331 | K35: Run Solver to see that the consumer responds by getting re-addicted!
A36: 19 | B36: 10.58135831 | C36: 0.5316921051 | D36: 1.255870578 | E36: 34.62846371 | F36: 0.5290679156 | G36: 0.00262418956 | H36: 1.212437317 | J36: Another Shock
A37: 20 | B37: 10.5839825 | C37: 0.5322823454 | D37: 1.281689444 | E37: 31.47255941 | F37: 0.529199125 | G37: 0.003083220382 | H37: 1.18602821 | K37: But what if the shock also affected satisfaction?
A38: 21 | B38: 10.58706572 | C38: 0.5325909491 | D38: 1.309808586 | E38: 28.60206906 | F38: 0.5293532861 | G38: 0.003237663022 | H38: 1.157600464 | K38: Suppose the shock is breaking news that playing football causes CTE, how can we model that? | AH38: This adds shock of c0=4.
A39: 22 | B39: 10.59030338 | C39: 0.5326167206 | D39: 1.340773764 | E39: 25.99109215 | F39: 0.5295151692 | G39: 0.003101551438 | H39: 1.126609515 | K39: Easy. Change c0 (cell E9) from 40 to 4 and run Solver.
A40: 23 | B40: 10.59340494 | C40: 0.5327051599 | D40: 1.374899584 | E40: 23.61668176 | F40: 0.5296702468 | G40: 0.003034913153 | H40: 1.092395256 | K40: Wow. This time, the agent has effectively quit!
A41: 24 | B41: 10.59643985 | C41: 0.5332676814 | D41: 1.412234586 | E41: 21.45788841 | F41: 0.5298219924 | G41: 0.003445688966 | H41: 1.054497732
A42: 25 | B42: 10.59988554 | C42: 0.5344243461 | D42: 1.45331594 | E42: 19.49486257 | F42: 0.5299942769 | G42: 0.004430069192 | H42: 1.012259714 | J42: Obviously, many shocks are possible. Figuring out how the optimal paths of x, y, and S respond to shocks
A43: 26 | B43: 10.60431561 | C43: 0.5358783657 | D43: 1.498768723 | E43: 17.70898739 | F43: 0.5302157803 | G43: 0.005662585359 | H43: 0.9653529117 | J43: is called comparative statics analysis. This is how economists explain changes in observed behaviors and make predictions.
A44: 27 | B44: 10.60997819 | C44: 0.5371180967 | D44: 1.548806743 | E44: 16.08343474 | F44: 0.5304989096 | G44: 0.006619187075 | H44: 0.9140751606
A45: 28 | B45: 10.61659738 | C45: 0.5377901343 | D45: 1.603645539 | E45: 14.60333712 | F45: 0.530829869 | G45: 0.00696026533 | H45: 0.8585643266
A46: 29 | B46: 10.62355764 | C46: 0.5379413019 | D46: 1.663898056 | E46: 13.25555555 | F46: 0.5311778822 | G46: 0.006763419689 | H46: 0.7981606426
A47: 30 | B47: 10.63032106 | C47: 0.5379789158 | D47: 1.730413336 | E47: 12.02830501 | F47: 0.5315160532 | G47: 0.006462862571 | H47: 0.7316077479
A48: 31 | B48: 10.63678393 | C48: 0.538443135 | D48: 1.803855955 | E48: 10.91084461 | F48: 0.5318391963 | G48: 0.006603938614 | H48: 0.6577009103
A49: 32 | B49: 10.64338787 | C49: 0.5396607964 | D49: 1.884590226 | E49: =(a0*C49-_a1*C49^2+b0*D49-_b1*D49^2+c0*B49-_c1*B49^2)/((1+dr)^A49) -> 9.893175445 | F49: =$D$13*B49 -> 0.5321693933 | G49: 0.007491403099 | H49: 0.5757489778
A50: 33 | B50: 10.65087927 | C50: 0.5415924108 | D50: 1.972964964 | E50: 8.965915218 | F50: 0.5325439634 | G50: 0.009048447361 | H50: =((1+mgr)^A50)*m/((1+ir)^A50)-C50/((1+ir)^A50)-D50/((1+ir)^A50) -> 0.4854426257
A51: 34 | B51: 10.65992772 | C51: 0.5439009629 | D51: 2.069655257 | E51: 8.12031293 | F51: 0.5329963858 | G51: 0.0109045771 | H51: 0.3864437799
A52: 35 | B52: 10.67083229 | C52: 0.5460751796 | D52: 2.175811298 | E52: 7.348280837 | F52: 0.5335416147 | G52: 0.0125335649 | H52: 0.2781135221
A53: 36 | B53: 10.68336586 | C53: 0.5479144344 | D53: 2.292930065 | E53: 6.642619637 | F53: 0.5341682929 | G53: 0.01374614152 | H53: 0.1591555008
A54: 37 | B54: 10.697112 | C54: 0.5498199382 | D54: 2.422487259 | E54: 5.997069493 | F54: 0.5348556 | G54: 0.01496433822 | H54: 0.02769280325
A55: 38 | B55: 10.71207634 | C55: 0.5512976614 | D55: 2.565594954 | E55: 5.405605239 | F55: 0.5356038169 | G55: 0.01569384449 | H55: -0.1168926159
A56: 39 | B56: 10.72777018 | C56: 0.5553421735 | D56: 2.723034717 | E56: 4.864195693 | F56: 0.5363885091 | G56: 0.01895366436 | H56: -0.2783768907
A57: 40 | B57: 10.74672385 | C57: 0.5597104546 | D57: 2.895672443 | E57: 4.366962498 | F57: 0.5373361923 | G57: 0.02237426227 | H57: -0.4553828979
A58: 41 | B58: 10.76909811 | C58: 0.5682456119 | D58: 3.08487166 | E58: 3.910599987 | F58: 0.5384549054 | G58: 0.02979070644 | H58: -0.6531172715
A59: 42 | B59: 10.79888882 | C59: 0.5841296515 | D59: 3.292602686 | E59: 3.491184107 | F59: 0.5399444408 | G59: 0.0441852107 | H59: -0.8767323372
A60: 43 | B60: 10.84307403 | C60: 0.6165252215 | D60: 3.521265174 | E60: 3.106046965 | F60: 0.5421537013 | G60: 0.07437152022 | H60: -1.137790396
A61: 44 | B61: 10.91744555 | C61: 0.6879643132 | D61: 3.773360897 | E61: 2.754342148 | F61: 0.5458722773 | G61: 0.1420920359 | H61: -1.46132521
A62: 45 | B62: 11.05953758 | C62: 0.8514522281 | D62: 4.051170321 | E62: 2.437457091 | F62: 0.5529768791 | G62: 0.298475349 | H62: -1.902622549
A63: 46 | B63: 11.35801293 | C63: 1.229176163 | D63: 4.356702226 | E63: 2.155591918 | F63: 0.5679006465 | G63: 0.6612755169 | H63: -2.585878389
A64: 47 | B64: 12.01928845 | C64: 2.111157071 | D64: 4.692077092 | E64: 1.881562604 | F64: 0.6009644224 | G64: 1.510192649 | H64: -3.803234164
A65: 48 | B65: 13.5294811 | C65: 4.162921163 | D65: 5.060080052 | E65: 1.402754583 | F65: 0.6764740548 | G65: 3.486447108 | H65: -6.223001215
A66: 49 | B66: 17.0159282 | C66: 8.955729002 | D66: 5.464482363 | E66: -0.5021135277 | F66: 0.8507964102 | G66: 8.104932592 | H66: -11.42021136

Sheet End (hidden)
A1: The end!
A3: You can enjoy a musical performance (either symphony or rock concert), but if you know a lot about the music or the artist, from years of following them or the genre,
A4: you will enjoy it much more. You can use your built up stock of consumption capital to remember other performances or artists and savor this one.
A5: This is the core idea behind the rational addiction model.
A7: It takes consumption each time period and accumulates it (subtracting for depreciation), using the stock of x as an input into utility.
A8: Solving this problem is quite difficult, but Excel's Solver does all of the hard work for us so we can focus on the properties of the model.
A10: Of critical importance is the idea that consumer chooses an optimal path, one that may result in "addiction," with a high stock of x.
A11: This outcome is determined by the parameters in the model -- the utility function, discount rate, and other exogenous variables.
A12: According to the rational addiction model, addiction is not something you fall into by mistake, it is the result of choices made by a forward-looking, rational agent.
A14: Another key idea is that a shock may lead to different outcomes. Some people, again depending on the parameters, might quit; while others simply increase x again and stay addicted.
A15: The model helps us understand these different patterns.
A16: It does not say that the people who quit are "good," and those that revert to past choices are "bad." Both are optimizing.
A18: The rational addiction model is not without its detractors and doubters.
A19: To see just one example, click here:
A20: Rogeberg (2004) | C20: Accessed May 20, 2019, if the link is broken, find Rogeberg's paper on "Taking Absurd Theories Seriously" from here --> | O20: Rogeberg search
A22: Of course, there are many other extensions and modifications to the model, like
A23: time inconsistent preferences.
A24: This is really just the tip of the iceberg.
A26: But if you gained mastery of the idea of an optimal path, that is a substantial accomplishment!
A28: Hope you learned a little economics and good luck out there!
